Workbook

Sheet radius change
A1: HOW TO USE THIS SPREADSHEET: | E1: INDEPENDENT VARIABLES HIGHLIGHTED
A2: 1) enter z in G11, T in G12, density multiplier (=1) in G13, 1e12 in G14, and 1e-9 in G15. | E2: MANUALLY ENTERED DEPENDENT VALUES IN RED
A3: 2) copy D25 and paste its value into G17. (right click G17, 2nd from left in "paste options"). | F3: CONSTANTS | G3: --------------------- | H3: units
A4: 3) select E25:E125 and change the series value (in "fill") until you get near 1 in column Z. | F4: gravitational constant G | G4: 6.67408E-11 | H4: m^3kg^-1sec^-2 | J4: H0 | K4: 67.4 | L4: Km/sec/Mpc
A5: 4) find the row in Z just below 1, go over to column A, and paste its value into G15. | F5: 92/8 H/He mwt | G5: 1.24750E-03 | H5: kg^1mole^-1 | I5: 1.24750E-03 | K5: =K4*1000 -> 67400 | L5: m/sec/Mpc
A6: 5) repeat steps 3 and 4 until one of the cells in column Z is 1.00000000. | F6: gas constant R | G6: 8.31446E+00 | H6: kg^1m^2sec^-2K^-1mole^-1 | K6: =K5/I14 -> 2.1841E-18 | L6: sec-1
A7: 6) You have found the endpoint! It's in column A. | F7: Hubble constant | G7: 2.18406E-18 | H7: sec-1 | Z7: 101050426
F8: ΛCDM mean baryon density at z = 0 | G8: 4.21E-28 | H8: Kg/m^3 | I8: 4.21E-28 | Z8: =Z7/300000000 -> 0.3368347533
F9: CDM multiplier | G9: 6.33
F10: VARIABLES | G10: ----------------------
F11: cosmic redshift z | G11: 0.000
F12: temperature | G12: 500 | H12: K | I12: 9.46073E+15 | J12: 1 light year. m
F13: baryon density multiplier: | G13: 1.000
F14: baryon density | G14: =$G$13*$G$8*(1+$G$11)^3 -> 4.210E-28 | H14: Kg/m^3 | I14: 3.09E+22 | J14: 1 megaparsec, m
F15: initial radius for log radial step: | G15: 1.0000E+12 | H15: m | I15: 6.3781E+06 | J15: Earth radius, m
F16: radial increment (r2-r1)/r1: | G16: 1.00E-09 | I16: =(1.01)^(1/3)-1 -> 0.003322283542 | J16: 1% volume increment
F17: uncorrected initial radial velocity v(s0) (at r1<<rc) | G17: 0.14140 | H17: m^1sec-1 | T17: =T25/S25 -> 3.53317E+18 | U17: =(L25-U25)/L25 -> 2.00000E-09
F18: correct initial radial velocity (vi) | G18: =SQRT(2*$G$6*$G$12/$G$5) -> 2581.65 | H18: m^1sec-1 | I18: Hg=vi/re: | J18: =G18/G20 -> 1.2663E-18
F19: correction factor vi/v(s0) | G19: =G18/G17 -> 1.83E+04 | I19: Hg/HΛ: | J19: =J18/G7 -> 5.7978E-01
F20: endpoint manually found by iteration: | G20: 2.0388E+21 | H20: m | I20: =G20/$I$14 -> 0.066 | J20: megaparsecs
A21: r1 | B21: r1/re | C21: vs' | D21: vs | E21: log Δri/r1 | F21: r1 | G21: Δri | H21: V1 | I21: M | J21: Mcdm | K21: P1 | L21: T1 | M21: U1 | N21: ρ1 | O21: r2 | P21: V2 | Q21: P2 | R21: U2 | S21: U2-U1 | T21: E | U21: T2 | V21: ρ2 | W21: Ek = E + U1 - U2 | X21: ΔPe | Y21: X'=Ur/Ek | Z21: X=ΔU/E | AA21: vs
A22: step radius | B22: fraction of endpoint | C22: corrected sphere radial velocity | D22: uncorrected sphere radial velocity | E22: log radial step | F22: step radius | G22: increment in meters | H22: starting volume | I22: thermodynamic mass | J22: CDM adjusted mass | K22: starting pressure | L22: starting temperature | M22: potential before reversible expansion | N22: starting gas density | O22: radius after reversible expansion | P22: volume after reversible expansion | Q22: internal pressure after reversible expansion | R22: potential after reversible expansion | S22: energy lost to gravity | T22: energy released by expansion of the gas | U22: temperature after reversible expansion | V22: gas density after reversible expansion | W22: radial kinetic energy after reversible expansion | X22: expansion pressure | Y22: cutoff ratio | Z22: gravity ratio | AA22: uncorrected sphere radial velocity
A23: (from column F) | D23: (from column AA)
A24: m | D24: m^1sec^-1 | F24: m | G24: m | H24: m^3 | I24: kg | J24: kg | K24: kg^1m^sec^-2 | L24: K | M24: kg^1m^2sec^-2 | N24: kg^1m^-3 | O24: m | P24: m^3 | Q24: kg^1m^1sec^-2 | R24: kg^1m^2sec^-2 | S24: kg^1m^2sec^-2 | T24: kg^1m^2sec^-2 | U24: K | V24: kg^1m^-3 | W24: kg-m^2sec^-2 | X24: kg^1m^1sec^-2 | AA24: M^1sec^-1
A25: =$F25 -> 1.00000E+12 | B25: =$A25/$G$20 -> 4.90486E-10 | C25: =$D25*$G$19 -> 2581.65 | D25: =$AA25 -> 0.141403 | E25: 0.0000000 | F25: =$G$15*10^($E25) -> 1.00000E+12 | G25: =$F25*$G$16 -> 1.0000000E+03 | H25: =(4/3)*PI()*$F25^3 -> 4.1888E+36 | I25: =$G$14*$H25 -> 1.76348E+09 | J25: =$I25*$G$9 -> 1.11628E+10 | K25: =(3*I25*$G$6*$L25)/(4*$G$5*PI()*$F25^3) -> 1.40296E-21 | L25: =$G$12 -> 500.00 | M25: =(-3/5)*$G$4*$J25^2/$F25 -> -4.98990E-03 | N25: =$G$14 -> 4.21000E-28 | O25: =$F25+$G25 -> 1.0000000E+12 | P25: =(4/3)*PI()*$O25^3 -> 4.18879E+36 | Q25: =$K25*($P25/$H25)^(-5/3) -> 1.40296E-21 | R25: =(-3/5)*$G$4*$J25^2/$O25 -> -4.98990E-03 | S25: =$R25-$M25 -> 4.98990E-12 | T25: =-(3/2)*$K25*$H25*(($P25/$H25)^(-2/3)-1) -> 1.76301E+07 | U25: =$L25*($Q25/$K25)^(2/5) -> 499.99999900 | V25: =$I25/$P25 -> 4.21000E-28 | W25: =$T25-$S25 -> 1.76301E+07 | X25: =$W25/$P25 -> 4.20888E-30 | Y25: =$S25/$W25 -> 2.83032E-19 | Z25: =$S25/$T25 -> 2.83032E-19 | AA25: =SQRT(2*$W25/$I25) -> 1.41403E-01
A26: =$F26 -> 1.00000E+12 | B26: 4.90487E-10 | C26: =$D26*$G$19 -> 2581.65 | D26: =$AA26 -> 0.141403 | E26: 0.0000010 | F26: =$G$15*10^($E26) -> 1.00000E+12 | G26: 1.0000023E+03 | H26: =(4/3)*PI()*$F26^3 -> 4.1888E+36 | I26: =$G$14*$H26 -> 1.76349E+09 | J26: =$I26*$G$9 -> 1.11629E+10 | K26: =(3*I26*$G$6*$L26)/(4*$G$5*PI()*$F26^3) -> 1.40296E-21 | L26: 500.00 | M26: =(-3/5)*$G$4*$J26^2/$F26 -> -4.98995E-03 | N26: =$G$14 -> 4.21000E-28 | O26: =$F26+$G26 -> 1.0000023E+12 | P26: =(4/3)*PI()*$O26^3 -> 4.18882E+36 | Q26: =$K26*($P26/$H26)^(-5/3) -> 1.40296E-21 | R26: -4.98995E-03 | S26: 4.98995E-12 | T26: 1.76303E+07 | U26: 499.99999900 | V26: =$I26/$P26 -> 4.21000E-28 | W26: =$T26-$S26 -> 1.76303E+07 | X26: =$W26/$P26 -> 4.20888E-30 | Y26: =$S26/$W26 -> 2.83034E-19 | Z26: =$S26/$T26 -> 2.83034E-19 | AA26: =SQRT(2*$W26/$I26) -> 1.41403E-01
A27: 1.00000E+12 | B27: 4.90488E-10 | C27: 2581.65 | D27: 0.141403 | E27: 0.0000020 | F27: 1.00000E+12 | G27: 1.0000046E+03 | H27: 4.1888E+36 | I27: 1.76351E+09 | J27: =$I27*$G$9 -> 1.11630E+10 | K27: =(3*I27*$G$6*$L27)/(4*$G$5*PI()*$F27^3) -> 1.40296E-21 | L27: 500.00 | M27: =(-3/5)*$G$4*$J27^2/$F27 -> -4.99001E-03 | N27: 4.21000E-28 | O27: =$F27+$G27 -> 1.0000046E+12 | P27: 4.18885E+36 | Q27: 1.40296E-21 | R27: -4.99001E-03 | S27: 4.99001E-12 | T27: 1.76304E+07 | U27: 499.99999900 | V27: 4.21000E-28 | W27: 1.76304E+07 | X27: 4.20888E-30 | Y27: 2.83035E-19 | Z27: 2.83035E-19 | AA27: 1.41403E-01
A28: 1.00001E+12 | B28: 4.90490E-10 | C28: 2581.65 | D28: 0.141403 | E28: 0.0000030 | F28: 1.00001E+12 | G28: 1.0000069E+03 | H28: 4.1889E+36 | I28: 1.76352E+09 | J28: =$I28*$G$9 -> 1.11631E+10 | K28: 1.40296E-21 | L28: 500.00 | M28: -4.99007E-03 | N28: 4.21000E-28 | O28: 1.0000069E+12 | P28: 4.18888E+36 | Q28: 1.40296E-21 | R28: -4.99007E-03 | S28: 4.99007E-12 | T28: 1.76305E+07 | U28: 499.99999900 | V28: 4.21000E-28 | W28: 1.76305E+07 | X28: 4.20889E-30 | Y28: 2.83036E-19 | Z28: 2.83036E-19 | AA28: 1.41403E-01
A29: 1.00001E+12 | B29: 4.90491E-10 | C29: 2581.65 | D29: 0.141403 | E29: 0.0000040 | F29: 1.00001E+12 | G29: 1.0000092E+03 | H29: 4.1889E+36 | I29: 1.76353E+09 | J29: =$I29*$G$9 -> 1.11631E+10 | K29: 1.40296E-21 | L29: 500.00 | M29: -4.99013E-03 | N29: 4.21000E-28 | O29: 1.0000092E+12 | P29: 4.18891E+36 | Q29: 1.40296E-21 | R29: -4.99013E-03 | S29: 4.99013E-12 | T29: 1.76306E+07 | U29: 499.99999900 | V29: 4.21000E-28 | W29: 1.76306E+07 | X29: 4.20888E-30 | Y29: 2.83037E-19 | Z29: 2.83037E-19 | AA29: 1.41403E-01
A30: 1.00001E+12 | B30: 4.90492E-10 | C30: 2581.65 | D30: 0.141403 | E30: 0.0000050 | F30: 1.00001E+12 | G30: 1.0000115E+03 | H30: 4.1889E+36 | I30: 1.76354E+09 | J30: =$I30*$G$9 -> 1.11632E+10 | K30: 1.40296E-21 | L30: 500.00 | M30: -4.99018E-03 | N30: 4.21000E-28 | O30: 1.0000115E+12 | P30: 4.18893E+36 | Q30: 1.40296E-21 | R30: -4.99018E-03 | S30: 4.99018E-12 | T30: 1.76307E+07 | U30: 499.99999900 | V30: 4.21000E-28 | W30: 1.76307E+07 | X30: 4.20888E-30 | Y30: 2.83039E-19 | Z30: 2.83039E-19 | AA30: 1.41403E-01
A31: 1.00001E+12 | B31: 4.90493E-10 | C31: 2581.65 | D31: 0.141403 | E31: 0.0000060 | F31: 1.00001E+12 | G31: 1.0000138E+03 | H31: 4.1890E+36 | I31: 1.76355E+09 | J31: =$I31*$G$9 -> 1.11633E+10 | K31: 1.40296E-21 | L31: 500.00 | M31: -4.99024E-03 | N31: 4.21000E-28 | O31: 1.0000138E+12 | P31: 4.18896E+36 | Q31: 1.40296E-21 | R31: -4.99024E-03 | S31: 4.99024E-12 | T31: 1.76309E+07 | U31: 499.99999900 | V31: 4.21000E-28 | W31: 1.76309E+07 | X31: 4.20888E-30 | Y31: 2.83040E-19 | Z31: 2.83040E-19 | AA31: 1.41403E-01
A32: 1.00002E+12 | B32: 4.90494E-10 | C32: 2581.65 | D32: 0.141403 | E32: 0.0000070 | F32: 1.00002E+12 | G32: 1.0000161E+03 | H32: 4.1890E+36 | I32: 1.76357E+09 | J32: =$I32*$G$9 -> 1.11634E+10 | K32: 1.40296E-21 | L32: 500.00 | M32: -4.99030E-03 | N32: 4.21000E-28 | O32: 1.0000161E+12 | P32: 4.18899E+36 | Q32: 1.40296E-21 | R32: -4.99030E-03 | S32: 4.99030E-12 | T32: 1.76310E+07 | U32: 499.99999900 | V32: 4.21000E-28 | W32: 1.76310E+07 | X32: 4.20888E-30 | Y32: 2.83041E-19 | Z32: 2.83041E-19 | AA32: 1.41403E-01
A33: 1.00002E+12 | B33: 4.90495E-10 | C33: 2581.65 | D33: 0.141403 | E33: 0.0000080 | F33: 1.00002E+12 | G33: 1.0000184E+03 | H33: 4.1890E+36 | I33: 1.76358E+09 | J33: =$I33*$G$9 -> 1.11634E+10 | K33: 1.40296E-21 | L33: 500.00 | M33: -4.99036E-03 | N33: 4.21000E-28 | O33: 1.0000184E+12 | P33: 4.18902E+36 | Q33: 1.40296E-21 | R33: -4.99036E-03 | S33: 4.99036E-12 | T33: 1.76311E+07 | U33: 499.99999900 | V33: 4.21000E-28 | W33: 1.76311E+07 | X33: 4.20888E-30 | Y33: 2.83043E-19 | Z33: 2.83043E-19 | AA33: 1.41403E-01
A34: 1.00002E+12 | B34: 4.90496E-10 | C34: 2581.65 | D34: 0.141403 | E34: 0.0000090 | F34: 1.00002E+12 | G34: 1.0000207E+03 | H34: 4.1891E+36 | I34: 1.76359E+09 | J34: =$I34*$G$9 -> 1.11635E+10 | K34: 1.40296E-21 | L34: 500.00 | M34: -4.99041E-03 | N34: 4.21000E-28 | O34: 1.0000207E+12 | P34: 4.18905E+36 | Q34: 1.40296E-21 | R34: -4.99041E-03 | S34: 4.99041E-12 | T34: 1.76312E+07 | U34: 499.99999900 | V34: 4.21000E-28 | W34: 1.76312E+07 | X34: 4.20888E-30 | Y34: 2.83044E-19 | Z34: 2.83044E-19 | AA34: 1.41403E-01
A35: 1.00002E+12 | B35: 4.90498E-10 | C35: 2581.65 | D35: 0.141403 | E35: 0.0000100 | F35: 1.00002E+12 | G35: 1.0000230E+03 | H35: 4.1891E+36 | I35: 1.76360E+09 | J35: =$I35*$G$9 -> 1.11636E+10 | K35: 1.40296E-21 | L35: 500.00 | M35: -4.99047E-03 | N35: 4.21000E-28 | O35: 1.0000230E+12 | P35: 4.18908E+36 | Q35: 1.40296E-21 | R35: -4.99047E-03 | S35: 4.99047E-12 | T35: 1.76314E+07 | U35: 499.99999900 | V35: 4.21000E-28 | W35: 1.76314E+07 | X35: 4.20888E-30 | Y35: 2.83045E-19 | Z35: 2.83045E-19 | AA35: 1.41403E-01
A36: 1.00003E+12 | B36: 4.90499E-10 | C36: 2581.65 | D36: 0.141403 | E36: 0.0000110 | F36: 1.00003E+12 | G36: 1.0000253E+03 | H36: 4.1891E+36 | I36: 1.76361E+09 | J36: =$I36*$G$9 -> 1.11637E+10 | K36: 1.40296E-21 | L36: 500.00 | M36: -4.99053E-03 | N36: 4.21000E-28 | O36: 1.0000253E+12 | P36: 4.18911E+36 | Q36: 1.40296E-21 | R36: -4.99053E-03 | S36: 4.99053E-12 | T36: 1.76315E+07 | U36: 499.99999900 | V36: 4.21000E-28 | W36: 1.76315E+07 | X36: 4.20888E-30 | Y36: 2.83047E-19 | Z36: 2.83047E-19 | AA36: 1.41403E-01
A37: 1.00003E+12 | B37: 4.90500E-10 | C37: 2581.65 | D37: 0.141403 | E37: 0.0000120 | F37: 1.00003E+12 | G37: 1.0000276E+03 | H37: 4.1891E+36 | I37: 1.76363E+09 | J37: =$I37*$G$9 -> 1.11638E+10 | K37: 1.40296E-21 | L37: 500.00 | M37: -4.99059E-03 | N37: 4.21000E-28 | O37: 1.0000276E+12 | P37: 4.18914E+36 | Q37: 1.40296E-21 | R37: -4.99059E-03 | S37: 4.99059E-12 | T37: 1.76316E+07 | U37: 499.99999900 | V37: 4.21000E-28 | W37: 1.76316E+07 | X37: 4.20888E-30 | Y37: 2.83048E-19 | Z37: 2.83048E-19 | AA37: 1.41403E-01
A38: 1.00003E+12 | B38: 4.90501E-10 | C38: 2581.65 | D38: 0.141403 | E38: 0.0000130 | F38: 1.00003E+12 | G38: 1.0000299E+03 | H38: 4.1892E+36 | I38: 1.76364E+09 | J38: =$I38*$G$9 -> 1.11638E+10 | K38: 1.40296E-21 | L38: 500.00 | M38: -4.99064E-03 | N38: 4.21000E-28 | O38: 1.0000299E+12 | P38: 4.18917E+36 | Q38: 1.40296E-21 | R38: -4.99064E-03 | S38: 4.99064E-12 | T38: 1.76317E+07 | U38: 499.99999900 | V38: 4.21000E-28 | W38: 1.76317E+07 | X38: 4.20888E-30 | Y38: 2.83049E-19 | Z38: 2.83049E-19 | AA38: 1.41403E-01
A39: 1.00003E+12 | B39: 4.90502E-10 | C39: 2581.65 | D39: 0.141403 | E39: 0.0000140 | F39: 1.00003E+12 | G39: 1.0000322E+03 | H39: 4.1892E+36 | I39: 1.76365E+09 | J39: =$I39*$G$9 -> 1.11639E+10 | K39: 1.40296E-21 | L39: 500.00 | M39: -4.99070E-03 | N39: 4.21000E-28 | O39: 1.0000322E+12 | P39: 4.18920E+36 | Q39: 1.40296E-21 | R39: -4.99070E-03 | S39: 4.99070E-12 | T39: 1.76318E+07 | U39: 499.99999900 | V39: 4.21000E-28 | W39: 1.76318E+07 | X39: 4.20888E-30 | Y39: 2.83050E-19 | Z39: 2.83050E-19 | AA39: 1.41403E-01
A40: 1.00003E+12 | B40: 4.90503E-10 | C40: 2581.65 | D40: 0.141403 | E40: 0.0000150 | F40: 1.00003E+12 | G40: 1.0000345E+03 | H40: 4.1892E+36 | I40: 1.76366E+09 | J40: =$I40*$G$9 -> 1.11640E+10 | K40: 1.40296E-21 | L40: 500.00 | M40: -4.99076E-03 | N40: 4.21000E-28 | O40: 1.0000345E+12 | P40: 4.18922E+36 | Q40: 1.40296E-21 | R40: -4.99076E-03 | S40: 4.99076E-12 | T40: 1.76320E+07 | U40: 499.99999900 | V40: 4.21000E-28 | W40: 1.76320E+07 | X40: 4.20888E-30 | Y40: 2.83052E-19 | Z40: 2.83052E-19 | AA40: 1.41403E-01
A41: 1.00004E+12 | B41: 4.90504E-10 | C41: 2581.65 | D41: 0.141403 | E41: 0.0000160 | F41: 1.00004E+12 | G41: 1.0000368E+03 | H41: 4.1893E+36 | I41: 1.76368E+09 | J41: =$I41*$G$9 -> 1.11641E+10 | K41: 1.40296E-21 | L41: 500.00 | M41: -4.99082E-03 | N41: 4.21000E-28 | O41: 1.0000368E+12 | P41: 4.18925E+36 | Q41: 1.40296E-21 | R41: -4.99082E-03 | S41: 4.99082E-12 | T41: 1.76321E+07 | U41: 499.99999900 | V41: 4.21000E-28 | W41: 1.76321E+07 | X41: 4.20888E-30 | Y41: 2.83053E-19 | Z41: 2.83053E-19 | AA41: 1.41403E-01
A42: 1.00004E+12 | B42: 4.90505E-10 | C42: 2581.65 | D42: 0.141403 | E42: 0.0000170 | F42: 1.00004E+12 | G42: 1.0000391E+03 | H42: 4.1893E+36 | I42: 1.76369E+09 | J42: =$I42*$G$9 -> 1.11641E+10 | K42: 1.40296E-21 | L42: 500.00 | M42: -4.99087E-03 | N42: 4.21000E-28 | O42: 1.0000391E+12 | P42: 4.18928E+36 | Q42: 1.40296E-21 | R42: -4.99087E-03 | S42: 4.99087E-12 | T42: 1.76322E+07 | U42: 499.99999900 | V42: 4.21000E-28 | W42: 1.76322E+07 | X42: 4.20888E-30 | Y42: 2.83054E-19 | Z42: 2.83054E-19 | AA42: 1.41403E-01
A43: 1.00004E+12 | B43: 4.90507E-10 | C43: 2581.65 | D43: 0.141403 | E43: 0.0000180 | F43: 1.00004E+12 | G43: 1.0000414E+03 | H43: 4.1893E+36 | I43: 1.76370E+09 | J43: =$I43*$G$9 -> 1.11642E+10 | K43: 1.40296E-21 | L43: 500.00 | M43: -4.99093E-03 | N43: 4.21000E-28 | O43: 1.0000414E+12 | P43: 4.18931E+36 | Q43: 1.40296E-21 | R43: -4.99093E-03 | S43: 4.99093E-12 | T43: 1.76323E+07 | U43: 499.99999900 | V43: 4.21000E-28 | W43: 1.76323E+07 | X43: 4.20889E-30 | Y43: 2.83056E-19 | Z43: 2.83056E-19 | AA43: 1.41403E-01
A44: 1.00004E+12 | B44: 4.90508E-10 | C44: 2581.65 | D44: 0.141403 | E44: 0.0000190 | F44: 1.00004E+12 | G44: 1.0000438E+03 | H44: 4.1893E+36 | I44: 1.76371E+09 | J44: =$I44*$G$9 -> 1.11643E+10 | K44: 1.40296E-21 | L44: 500.00 | M44: -4.99099E-03 | N44: 4.21000E-28 | O44: 1.0000438E+12 | P44: 4.18934E+36 | Q44: 1.40296E-21 | R44: -4.99099E-03 | S44: 4.99099E-12 | T44: 1.76324E+07 | U44: 499.99999900 | V44: 4.21000E-28 | W44: 1.76324E+07 | X44: 4.20888E-30 | Y44: 2.83057E-19 | Z44: 2.83057E-19 | AA44: 1.41403E-01
A45: 1.00005E+12 | B45: 4.90509E-10 | C45: 2581.65 | D45: 0.141403 | E45: 0.0000200 | F45: 1.00005E+12 | G45: 1.0000461E+03 | H45: 4.1894E+36 | I45: 1.76372E+09 | J45: =$I45*$G$9 -> 1.11644E+10 | K45: 1.40296E-21 | L45: 500.00 | M45: -4.99105E-03 | N45: 4.21000E-28 | O45: 1.0000461E+12 | P45: 4.18937E+36 | Q45: 1.40296E-21 | R45: -4.99105E-03 | S45: 4.99104E-12 | T45: 1.76326E+07 | U45: 499.99999900 | V45: 4.21000E-28 | W45: 1.76326E+07 | X45: 4.20888E-30 | Y45: 2.83058E-19 | Z45: 2.83058E-19 | AA45: 1.41403E-01
A46: 1.00005E+12 | B46: 4.90510E-10 | C46: 2581.65 | D46: 0.141403 | E46: 0.0000210 | F46: 1.00005E+12 | G46: 1.0000484E+03 | H46: 4.1894E+36 | I46: 1.76374E+09 | J46: =$I46*$G$9 -> 1.11645E+10 | K46: 1.40296E-21 | L46: 500.00 | M46: -4.99110E-03 | N46: 4.21000E-28 | O46: 1.0000484E+12 | P46: 4.18940E+36 | Q46: 1.40296E-21 | R46: -4.99110E-03 | S46: 4.99110E-12 | T46: 1.76327E+07 | U46: 499.99999900 | V46: 4.21000E-28 | W46: 1.76327E+07 | X46: 4.20888E-30 | Y46: 2.83060E-19 | Z46: 2.83060E-19 | AA46: 1.41403E-01
A47: 1.00005E+12 | B47: 4.90511E-10 | C47: 2581.65 | D47: 0.141403 | E47: 0.0000220 | F47: 1.00005E+12 | G47: 1.0000507E+03 | H47: 4.1894E+36 | I47: 1.76375E+09 | J47: =$I47*$G$9 -> 1.11645E+10 | K47: 1.40296E-21 | L47: 500.00 | M47: -4.99116E-03 | N47: 4.21000E-28 | O47: 1.0000507E+12 | P47: 4.18943E+36 | Q47: 1.40296E-21 | R47: -4.99116E-03 | S47: 4.99116E-12 | T47: 1.76328E+07 | U47: 499.99999900 | V47: 4.21000E-28 | W47: 1.76328E+07 | X47: 4.20888E-30 | Y47: 2.83061E-19 | Z47: 2.83061E-19 | AA47: 1.41403E-01
A48: 1.00005E+12 | B48: 4.90512E-10 | C48: 2581.65 | D48: 0.141403 | E48: 0.0000230 | F48: 1.00005E+12 | G48: 1.0000530E+03 | H48: 4.1895E+36 | I48: 1.76376E+09 | J48: =$I48*$G$9 -> 1.11646E+10 | K48: 1.40296E-21 | L48: 500.00 | M48: -4.99122E-03 | N48: 4.21000E-28 | O48: 1.0000530E+12 | P48: 4.18946E+36 | Q48: 1.40296E-21 | R48: -4.99122E-03 | S48: 4.99122E-12 | T48: 1.76329E+07 | U48: 499.99999900 | V48: 4.21000E-28 | W48: 1.76329E+07 | X48: 4.20888E-30 | Y48: 2.83062E-19 | Z48: 2.83062E-19 | AA48: 1.41403E-01
A49: 1.00006E+12 | B49: 4.90513E-10 | C49: 2581.65 | D49: 0.141403 | E49: 0.0000240 | F49: 1.00006E+12 | G49: 1.0000553E+03 | H49: 4.1895E+36 | I49: 1.76377E+09 | J49: =$I49*$G$9 -> 1.11647E+10 | K49: 1.40296E-21 | L49: 500.00 | M49: -4.99127E-03 | N49: 4.21000E-28 | O49: 1.0000553E+12 | P49: 4.18948E+36 | Q49: 1.40296E-21 | R49: -4.99127E-03 | S49: 4.99127E-12 | T49: 1.76331E+07 | U49: 499.99999900 | V49: 4.21000E-28 | W49: 1.76331E+07 | X49: 4.20888E-30 | Y49: 2.83063E-19 | Z49: 2.83063E-19 | AA49: 1.41403E-01
A50: 1.00006E+12 | B50: 4.90514E-10 | C50: 2581.65 | D50: 0.141403 | E50: 0.0000250 | F50: 1.00006E+12 | G50: 1.0000576E+03 | H50: 4.1895E+36 | I50: 1.76379E+09 | J50: =$I50*$G$9 -> 1.11648E+10 | K50: 1.40296E-21 | L50: 500.00 | M50: -4.99133E-03 | N50: 4.21000E-28 | O50: 1.0000576E+12 | P50: 4.18951E+36 | Q50: 1.40296E-21 | R50: -4.99133E-03 | S50: 4.99133E-12 | T50: 1.76332E+07 | U50: 499.99999900 | V50: 4.21000E-28 | W50: 1.76332E+07 | X50: 4.20888E-30 | Y50: 2.83065E-19 | Z50: 2.83065E-19 | AA50: 1.41403E-01
A51: 1.00006E+12 | B51: 4.90516E-10 | C51: 2581.65 | D51: 0.141403 | E51: 0.0000260 | F51: 1.00006E+12 | G51: 1.0000599E+03 | H51: 4.1895E+36 | I51: 1.76380E+09 | J51: =$I51*$G$9 -> 1.11648E+10 | K51: 1.40296E-21 | L51: 500.00 | M51: -4.99139E-03 | N51: 4.21000E-28 | O51: 1.0000599E+12 | P51: 4.18954E+36 | Q51: 1.40296E-21 | R51: -4.99139E-03 | S51: 4.99139E-12 | T51: 1.76333E+07 | U51: 499.99999900 | V51: 4.21000E-28 | W51: 1.76333E+07 | X51: 4.20888E-30 | Y51: 2.83066E-19 | Z51: 2.83066E-19 | AA51: 1.41403E-01
A52: 1.00006E+12 | B52: 4.90517E-10 | C52: 2581.65 | D52: 0.141403 | E52: 0.0000270 | F52: 1.00006E+12 | G52: 1.0000622E+03 | H52: 4.1896E+36 | I52: 1.76381E+09 | J52: =$I52*$G$9 -> 1.11649E+10 | K52: 1.40296E-21 | L52: 500.00 | M52: -4.99145E-03 | N52: 4.21000E-28 | O52: 1.0000622E+12 | P52: 4.18957E+36 | Q52: 1.40296E-21 | R52: -4.99145E-03 | S52: 4.99145E-12 | T52: 1.76334E+07 | U52: 499.99999900 | V52: 4.21000E-28 | W52: 1.76334E+07 | X52: 4.20888E-30 | Y52: 2.83067E-19 | Z52: 2.83067E-19 | AA52: 1.41403E-01
A53: 1.00006E+12 | B53: 4.90518E-10 | C53: 2581.65 | D53: 0.141403 | E53: 0.0000280 | F53: 1.00006E+12 | G53: 1.0000645E+03 | H53: 4.1896E+36 | I53: 1.76382E+09 | J53: =$I53*$G$9 -> 1.11650E+10 | K53: 1.40296E-21 | L53: 500.00 | M53: -4.99150E-03 | N53: 4.21000E-28 | O53: 1.0000645E+12 | P53: 4.18960E+36 | Q53: 1.40296E-21 | R53: -4.99150E-03 | S53: 4.99150E-12 | T53: 1.76335E+07 | U53: 499.99999900 | V53: 4.21000E-28 | W53: 1.76335E+07 | X53: 4.20888E-30 | Y53: 2.83069E-19 | Z53: 2.83069E-19 | AA53: 1.41403E-01
A54: 1.00007E+12 | B54: 4.90519E-10 | C54: 2581.65 | D54: 0.141403 | E54: 0.0000290 | F54: 1.00007E+12 | G54: 1.0000668E+03 | H54: 4.1896E+36 | I54: 1.76383E+09 | J54: =$I54*$G$9 -> 1.11651E+10 | K54: 1.40296E-21 | L54: 500.00 | M54: -4.99156E-03 | N54: 4.21000E-28 | O54: 1.0000668E+12 | P54: 4.18963E+36 | Q54: 1.40296E-21 | R54: -4.99156E-03 | S54: 4.99156E-12 | T54: 1.76337E+07 | U54: 499.99999900 | V54: 4.21000E-28 | W54: 1.76337E+07 | X54: 4.20888E-30 | Y54: 2.83070E-19 | Z54: 2.83070E-19 | AA54: 1.41403E-01
A55: 1.00007E+12 | B55: 4.90520E-10 | C55: 2581.65 | D55: 0.141403 | E55: 0.0000300 | F55: 1.00007E+12 | G55: 1.0000691E+03 | H55: 4.1897E+36 | I55: 1.76385E+09 | J55: =$I55*$G$9 -> 1.11651E+10 | K55: 1.40296E-21 | L55: 500.00 | M55: -4.99162E-03 | N55: 4.21000E-28 | O55: 1.0000691E+12 | P55: 4.18966E+36 | Q55: 1.40296E-21 | R55: -4.99162E-03 | S55: 4.99162E-12 | T55: 1.76338E+07 | U55: 499.99999900 | V55: 4.21000E-28 | W55: 1.76338E+07 | X55: 4.20888E-30 | Y55: 2.83071E-19 | Z55: 2.83071E-19 | AA55: 1.41403E-01
A56: 1.00007E+12 | B56: 4.90521E-10 | C56: 2581.65 | D56: 0.141403 | E56: 0.0000310 | F56: 1.00007E+12 | G56: 1.0000714E+03 | H56: 4.1897E+36 | I56: 1.76386E+09 | J56: =$I56*$G$9 -> 1.11652E+10 | K56: 1.40296E-21 | L56: 500.00 | M56: -4.99168E-03 | N56: 4.21000E-28 | O56: 1.0000714E+12 | P56: 4.18969E+36 | Q56: 1.40296E-21 | R56: -4.99168E-03 | S56: 4.99168E-12 | T56: 1.76339E+07 | U56: 499.99999900 | V56: 4.21000E-28 | W56: 1.76339E+07 | X56: 4.20888E-30 | Y56: 2.83073E-19 | Z56: 2.83073E-19 | AA56: 1.41403E-01
A57: =$F57 -> 1.00007E+12 | B57: =$A57/$G$20 -> 4.90522E-10 | C57: 2581.65 | D57: 0.141403 | E57: 0.0000320 | F57: =$G$15*10^($E57) -> 1.00007E+12 | G57: =$F57*$G$16 -> 1.0000737E+03 | H57: =(4/3)*PI()*$F57^3 -> 4.1897E+36 | I57: =$G$14*$H57 -> 1.76387E+09 | J57: =$I57*$G$9 -> 1.11653E+10 | K57: =(3*I57*$G$6*$L57)/(4*$G$5*PI()*$F57^3) -> 1.40296E-21 | L57: =$G$12 -> 500.00 | M57: =(-3/5)*$G$4*$J57^2/$F57 -> -4.99173E-03 | N57: =$G$14 -> 4.21000E-28 | O57: =$F57+$G57 -> 1.0000737E+12 | P57: =(4/3)*PI()*$O57^3 -> 4.18972E+36 | Q57: =$K57*($P57/$H57)^(-5/3) -> 1.40296E-21 | R57: =(-3/5)*$G$4*$J57^2/$O57 -> -4.99173E-03 | S57: =$R57-$M57 -> 4.99174E-12 | T57: =-(3/2)*$K57*$H57*(($P57/$H57)^(-2/3)-1) -> 1.76340E+07 | U57: =$L57*($Q57/$K57)^(2/5) -> 499.99999900 | V57: =$I57/$P57 -> 4.21000E-28 | W57: 1.76340E+07 | X57: =$W57/$P57 -> 4.20888E-30 | Y57: 2.83074E-19 | Z57: 2.83074E-19 | AA57: =SQRT(2*$W57/$I57) -> 1.41403E-01
A58: 1.00008E+12 | B58: 4.90524E-10 | C58: 2581.65 | D58: 0.141403 | E58: 0.0000330 | F58: 1.00008E+12 | G58: 1.0000760E+03 | H58: 4.1897E+36 | I58: 1.76388E+09 | J58: =$I58*$G$9 -> 1.11654E+10 | K58: 1.40296E-21 | L58: 500.00 | M58: -4.99179E-03 | N58: 4.21000E-28 | O58: 1.0000760E+12 | P58: 4.18975E+36 | Q58: 1.40296E-21 | R58: -4.99179E-03 | S58: 4.99179E-12 | T58: 1.76342E+07 | U58: 499.99999900 | V58: 4.21000E-28 | W58: 1.76342E+07 | X58: 4.20888E-30 | Y58: 2.83075E-19 | Z58: 2.83075E-19 | AA58: 1.41403E-01
A59: 1.00008E+12 | B59: 4.90525E-10 | C59: 2581.65 | D59: 0.141403 | E59: 0.0000340 | F59: 1.00008E+12 | G59: 1.0000783E+03 | H59: 4.1898E+36 | I59: 1.76389E+09 | J59: =$I59*$G$9 -> 1.11655E+10 | K59: 1.40296E-21 | L59: 500.00 | M59: -4.99185E-03 | N59: 4.21000E-28 | O59: 1.0000783E+12 | P59: 4.18977E+36 | Q59: 1.40296E-21 | R59: -4.99185E-03 | S59: 4.99185E-12 | T59: 1.76343E+07 | U59: 499.99999900 | V59: 4.21000E-28 | W59: 1.76343E+07 | X59: 4.20888E-30 | Y59: 2.83077E-19 | Z59: 2.83077E-19 | AA59: 1.41403E-01
A60: 1.00008E+12 | B60: 4.90526E-10 | C60: 2581.65 | D60: 0.141403 | E60: 0.0000350 | F60: 1.00008E+12 | G60: 1.0000806E+03 | H60: 4.1898E+36 | I60: 1.76391E+09 | J60: =$I60*$G$9 -> 1.11655E+10 | K60: 1.40296E-21 | L60: 500.00 | M60: -4.99191E-03 | N60: 4.21000E-28 | O60: 1.0000806E+12 | P60: 4.18980E+36 | Q60: 1.40296E-21 | R60: -4.99191E-03 | S60: 4.99191E-12 | T60: 1.76344E+07 | U60: 499.99999900 | V60: 4.21000E-28 | W60: 1.76344E+07 | X60: 4.20888E-30 | Y60: 2.83078E-19 | Z60: 2.83078E-19 | AA60: 1.41403E-01
A61: 1.00008E+12 | B61: 4.90527E-10 | C61: 2581.65 | D61: 0.141403 | E61: 0.0000360 | F61: 1.00008E+12 | G61: 1.0000829E+03 | H61: 4.1898E+36 | I61: 1.76392E+09 | J61: =$I61*$G$9 -> 1.11656E+10 | K61: 1.40296E-21 | L61: 500.00 | M61: -4.99196E-03 | N61: 4.21000E-28 | O61: 1.0000829E+12 | P61: 4.18983E+36 | Q61: 1.40296E-21 | R61: -4.99196E-03 | S61: 4.99196E-12 | T61: 1.76345E+07 | U61: 499.99999900 | V61: 4.21000E-28 | W61: 1.76345E+07 | X61: 4.20888E-30 | Y61: 2.83079E-19 | Z61: 2.83079E-19 | AA61: 1.41403E-01
A62: 1.00009E+12 | B62: 4.90528E-10 | C62: 2581.65 | D62: 0.141403 | E62: 0.0000370 | F62: 1.00009E+12 | G62: 1.0000852E+03 | H62: 4.1899E+36 | I62: 1.76393E+09 | J62: =$I62*$G$9 -> 1.11657E+10 | K62: 1.40296E-21 | L62: 500.00 | M62: -4.99202E-03 | N62: 4.21000E-28 | O62: 1.0000852E+12 | P62: 4.18986E+36 | Q62: 1.40296E-21 | R62: -4.99202E-03 | S62: 4.99202E-12 | T62: 1.76346E+07 | U62: 499.99999900 | V62: 4.21000E-28 | W62: 1.76346E+07 | X62: 4.20888E-30 | Y62: 2.83080E-19 | Z62: 2.83080E-19 | AA62: 1.41403E-01
A63: 1.00009E+12 | B63: 4.90529E-10 | C63: 2581.65 | D63: 0.141403 | E63: 0.0000380 | F63: 1.00009E+12 | G63: 1.0000875E+03 | H63: 4.1899E+36 | I63: 1.76394E+09 | J63: =$I63*$G$9 -> 1.11658E+10 | K63: 1.40296E-21 | L63: 500.00 | M63: -4.99208E-03 | N63: 4.21000E-28 | O63: 1.0000875E+12 | P63: 4.18989E+36 | Q63: 1.40296E-21 | R63: -4.99208E-03 | S63: 4.99208E-12 | T63: 1.76348E+07 | U63: 499.99999900 | V63: 4.21000E-28 | W63: 1.76348E+07 | X63: 4.20888E-30 | Y63: 2.83082E-19 | Z63: 2.83082E-19 | AA63: 1.41403E-01
A64: 1.00009E+12 | B64: 4.90530E-10 | C64: 2581.65 | D64: 0.141403 | E64: 0.0000390 | F64: 1.00009E+12 | G64: 1.0000898E+03 | H64: 4.1899E+36 | I64: 1.76396E+09 | J64: =$I64*$G$9 -> 1.11658E+10 | K64: 1.40296E-21 | L64: 500.00 | M64: -4.99214E-03 | N64: 4.21000E-28 | O64: 1.0000898E+12 | P64: 4.18992E+36 | Q64: 1.40296E-21 | R64: -4.99214E-03 | S64: 4.99214E-12 | T64: 1.76349E+07 | U64: 499.99999900 | V64: 4.21000E-28 | W64: 1.76349E+07 | X64: 4.20888E-30 | Y64: 2.83083E-19 | Z64: 2.83083E-19 | AA64: 1.41403E-01
A65: 1.00009E+12 | B65: 4.90531E-10 | C65: 2581.65 | D65: 0.141403 | E65: 0.0000400 | F65: 1.00009E+12 | G65: 1.0000921E+03 | H65: 4.1899E+36 | I65: 1.76397E+09 | J65: =$I65*$G$9 -> 1.11659E+10 | K65: 1.40296E-21 | L65: 500.00 | M65: -4.99219E-03 | N65: 4.21000E-28 | O65: 1.0000921E+12 | P65: 4.18995E+36 | Q65: 1.40296E-21 | R65: -4.99219E-03 | S65: 4.99220E-12 | T65: 1.76350E+07 | U65: 499.99999900 | V65: 4.21000E-28 | W65: 1.76350E+07 | X65: 4.20888E-30 | Y65: 2.83084E-19 | Z65: 2.83084E-19 | AA65: 1.41403E-01
A66: 1.00009E+12 | B66: 4.90533E-10 | C66: 2581.65 | D66: 0.141403 | E66: 0.0000410 | F66: 1.00009E+12 | G66: 1.0000944E+03 | H66: 4.1900E+36 | I66: 1.76398E+09 | J66: =$I66*$G$9 -> 1.11660E+10 | K66: 1.40296E-21 | L66: 500.00 | M66: -4.99225E-03 | N66: 4.21000E-28 | O66: 1.0000944E+12 | P66: 4.18998E+36 | Q66: 1.40296E-21 | R66: -4.99225E-03 | S66: 4.99225E-12 | T66: 1.76351E+07 | U66: 499.99999900 | V66: 4.21000E-28 | W66: 1.76351E+07 | X66: 4.20888E-30 | Y66: 2.83086E-19 | Z66: 2.83086E-19 | AA66: 1.41403E-01
A67: 1.00010E+12 | B67: 4.90534E-10 | C67: 2581.65 | D67: 0.141403 | E67: 0.0000420 | F67: 1.00010E+12 | G67: 1.0000967E+03 | H67: 4.1900E+36 | I67: 1.76399E+09 | J67: =$I67*$G$9 -> 1.11661E+10 | K67: 1.40296E-21 | L67: 500.00 | M67: -4.99231E-03 | N67: 4.21000E-28 | O67: 1.0000967E+12 | P67: 4.19001E+36 | Q67: 1.40296E-21 | R67: -4.99231E-03 | S67: 4.99231E-12 | T67: 1.76352E+07 | U67: 499.99999900 | V67: 4.21000E-28 | W67: 1.76352E+07 | X67: 4.20888E-30 | Y67: 2.83087E-19 | Z67: 2.83087E-19 | AA67: 1.41403E-01
A68: 1.00010E+12 | B68: 4.90535E-10 | C68: 2581.65 | D68: 0.141403 | E68: 0.0000430 | F68: 1.00010E+12 | G68: 1.0000990E+03 | H68: 4.1900E+36 | I68: 1.76400E+09 | J68: =$I68*$G$9 -> 1.11661E+10 | K68: 1.40296E-21 | L68: 500.00 | M68: -4.99237E-03 | N68: 4.21000E-28 | O68: 1.0000990E+12 | P68: 4.19003E+36 | Q68: 1.40296E-21 | R68: -4.99237E-03 | S68: 4.99237E-12 | T68: 1.76354E+07 | U68: 499.99999900 | V68: 4.21000E-28 | W68: 1.76354E+07 | X68: 4.20888E-30 | Y68: 2.83088E-19 | Z68: 2.83088E-19 | AA68: 1.41403E-01
A69: 1.00010E+12 | B69: 4.90536E-10 | C69: 2581.65 | D69: 0.141403 | E69: 0.0000440 | F69: 1.00010E+12 | G69: 1.0001013E+03 | H69: 4.1901E+36 | I69: 1.76402E+09 | J69: =$I69*$G$9 -> 1.11662E+10 | K69: 1.40296E-21 | L69: 500.00 | M69: -4.99242E-03 | N69: 4.21000E-28 | O69: 1.0001013E+12 | P69: 4.19006E+36 | Q69: 1.40296E-21 | R69: -4.99242E-03 | S69: 4.99242E-12 | T69: 1.76355E+07 | U69: 499.99999900 | V69: 4.21000E-28 | W69: 1.76355E+07 | X69: 4.20888E-30 | Y69: 2.83090E-19 | Z69: 2.83090E-19 | AA69: 1.41403E-01
A70: 1.00010E+12 | B70: 4.90537E-10 | C70: 2581.65 | D70: 0.141403 | E70: 0.0000450 | F70: 1.00010E+12 | G70: 1.0001036E+03 | H70: 4.1901E+36 | I70: 1.76403E+09 | J70: =$I70*$G$9 -> 1.11663E+10 | K70: 1.40296E-21 | L70: 500.00 | M70: -4.99248E-03 | N70: 4.21000E-28 | O70: 1.0001036E+12 | P70: 4.19009E+36 | Q70: 1.40296E-21 | R70: -4.99248E-03 | S70: 4.99248E-12 | T70: 1.76356E+07 | U70: 499.99999900 | V70: 4.21000E-28 | W70: 1.76356E+07 | X70: 4.20888E-30 | Y70: 2.83091E-19 | Z70: 2.83091E-19 | AA70: 1.41403E-01
A71: 1.00011E+12 | B71: 4.90538E-10 | C71: 2581.65 | D71: 0.141403 | E71: 0.0000460 | F71: 1.00011E+12 | G71: 1.0001059E+03 | H71: 4.1901E+36 | I71: 1.76404E+09 | J71: =$I71*$G$9 -> 1.11664E+10 | K71: 1.40296E-21 | L71: 500.00 | M71: -4.99254E-03 | N71: 4.21000E-28 | O71: 1.0001059E+12 | P71: 4.19012E+36 | Q71: 1.40296E-21 | R71: -4.99254E-03 | S71: 4.99254E-12 | T71: 1.76357E+07 | U71: 499.99999900 | V71: 4.21000E-28 | W71: 1.76357E+07 | X71: 4.20888E-30 | Y71: 2.83092E-19 | Z71: 2.83092E-19 | AA71: 1.41403E-01
A72: 1.00011E+12 | B72: 4.90539E-10 | C72: 2581.65 | D72: 0.141403 | E72: 0.0000470 | F72: 1.00011E+12 | G72: 1.0001082E+03 | H72: 4.1902E+36 | I72: 1.76405E+09 | J72: =$I72*$G$9 -> 1.11665E+10 | K72: 1.40296E-21 | L72: 500.00 | M72: -4.99260E-03 | N72: 4.21000E-28 | O72: 1.0001082E+12 | P72: 4.19015E+36 | Q72: 1.40296E-21 | R72: -4.99260E-03 | S72: 4.99260E-12 | T72: 1.76359E+07 | U72: 499.99999900 | V72: 4.21000E-28 | W72: 1.76359E+07 | X72: 4.20888E-30 | Y72: 2.83093E-19 | Z72: 2.83093E-19 | AA72: 1.41403E-01
A73: 1.00011E+12 | B73: 4.90540E-10 | C73: 2581.65 | D73: 0.141403 | E73: 0.0000480 | F73: 1.00011E+12 | G73: 1.0001105E+03 | H73: 4.1902E+36 | I73: 1.76407E+09 | J73: =$I73*$G$9 -> 1.11665E+10 | K73: 1.40296E-21 | L73: 500.00 | M73: -4.99265E-03 | N73: 4.21000E-28 | O73: 1.0001105E+12 | P73: 4.19018E+36 | Q73: 1.40296E-21 | R73: -4.99265E-03 | S73: 4.99265E-12 | T73: 1.76360E+07 | U73: 499.99999900 | V73: 4.21000E-28 | W73: 1.76360E+07 | X73: 4.20888E-30 | Y73: 2.83095E-19 | Z73: 2.83095E-19 | AA73: 1.41403E-01
A74: 1.00011E+12 | B74: 4.90542E-10 | C74: 2581.65 | D74: 0.141403 | E74: 0.0000490 | F74: 1.00011E+12 | G74: 1.0001128E+03 | H74: 4.1902E+36 | I74: 1.76408E+09 | J74: =$I74*$G$9 -> 1.11666E+10 | K74: 1.40296E-21 | L74: 500.00 | M74: -4.99271E-03 | N74: 4.21000E-28 | O74: 1.0001128E+12 | P74: 4.19021E+36 | Q74: 1.40296E-21 | R74: -4.99271E-03 | S74: 4.99271E-12 | T74: 1.76361E+07 | U74: 499.99999900 | V74: 4.21000E-28 | W74: 1.76361E+07 | X74: 4.20888E-30 | Y74: 2.83096E-19 | Z74: 2.83096E-19 | AA74: 1.41403E-01
A75: 1.00012E+12 | B75: 4.90543E-10 | C75: 2581.65 | D75: 0.141403 | E75: 0.0000500 | F75: 1.00012E+12 | G75: 1.0001151E+03 | H75: 4.1902E+36 | I75: 1.76409E+09 | J75: =$I75*$G$9 -> 1.11667E+10 | K75: 1.40296E-21 | L75: 500.00 | M75: -4.99277E-03 | N75: 4.21000E-28 | O75: 1.0001151E+12 | P75: 4.19024E+36 | Q75: 1.40296E-21 | R75: -4.99277E-03 | S75: 4.99277E-12 | T75: 1.76362E+07 | U75: 499.99999900 | V75: 4.21000E-28 | W75: 1.76362E+07 | X75: 4.20888E-30 | Y75: 2.83097E-19 | Z75: 2.83097E-19 | AA75: 1.41403E-01
A76: 1.00012E+12 | B76: 4.90544E-10 | C76: 2581.65 | D76: 0.141403 | E76: 0.0000510 | F76: 1.00012E+12 | G76: 1.0001174E+03 | H76: 4.1903E+36 | I76: 1.76410E+09 | J76: =$I76*$G$9 -> 1.11668E+10 | K76: 1.40296E-21 | L76: 500.00 | M76: -4.99283E-03 | N76: 4.21000E-28 | O76: 1.0001174E+12 | P76: 4.19027E+36 | Q76: 1.40296E-21 | R76: -4.99283E-03 | S76: 4.99283E-12 | T76: 1.76363E+07 | U76: 499.99999900 | V76: 4.21000E-28 | W76: 1.76363E+07 | X76: 4.20888E-30 | Y76: 2.83099E-19 | Z76: 2.83099E-19 | AA76: 1.41403E-01
A77: 1.00012E+12 | B77: 4.90545E-10 | C77: 2581.65 | D77: 0.141403 | E77: 0.0000520 | F77: 1.00012E+12 | G77: 1.0001197E+03 | H77: 4.1903E+36 | I77: 1.76411E+09 | J77: =$I77*$G$9 -> 1.11668E+10 | K77: 1.40296E-21 | L77: 500.00 | M77: -4.99288E-03 | N77: 4.21000E-28 | O77: 1.0001197E+12 | P77: 4.19030E+36 | Q77: 1.40296E-21 | R77: -4.99288E-03 | S77: 4.99288E-12 | T77: 1.76365E+07 | U77: 499.99999900 | V77: 4.21000E-28 | W77: 1.76365E+07 | X77: 4.20888E-30 | Y77: 2.83100E-19 | Z77: 2.83100E-19 | AA77: 1.41403E-01
A78: 1.00012E+12 | B78: 4.90546E-10 | C78: 2581.65 | D78: 0.141403 | E78: 0.0000530 | F78: 1.00012E+12 | G78: 1.0001220E+03 | H78: 4.1903E+36 | I78: 1.76413E+09 | J78: =$I78*$G$9 -> 1.11669E+10 | K78: 1.40296E-21 | L78: 500.00 | M78: -4.99294E-03 | N78: 4.21000E-28 | O78: 1.0001220E+12 | P78: 4.19032E+36 | Q78: 1.40296E-21 | R78: -4.99294E-03 | S78: 4.99294E-12 | T78: 1.76366E+07 | U78: 499.99999900 | V78: 4.21000E-28 | W78: 1.76366E+07 | X78: 4.20888E-30 | Y78: 2.83101E-19 | Z78: 2.83101E-19 | AA78: 1.41403E-01
A79: 1.00012E+12 | B79: 4.90547E-10 | C79: 2581.65 | D79: 0.141403 | E79: 0.0000540 | F79: 1.00012E+12 | G79: 1.0001243E+03 | H79: 4.1904E+36 | I79: 1.76414E+09 | J79: =$I79*$G$9 -> 1.11670E+10 | K79: 1.40296E-21 | L79: 500.00 | M79: -4.99300E-03 | N79: 4.21000E-28 | O79: 1.0001243E+12 | P79: 4.19035E+36 | Q79: 1.40296E-21 | R79: -4.99300E-03 | S79: 4.99300E-12 | T79: 1.76367E+07 | U79: 499.99999900 | V79: 4.21000E-28 | W79: 1.76367E+07 | X79: 4.20888E-30 | Y79: 2.83103E-19 | Z79: 2.83103E-19 | AA79: 1.41403E-01
A80: 1.00013E+12 | B80: 4.90548E-10 | C80: 2581.65 | D80: 0.141403 | E80: 0.0000550 | F80: 1.00013E+12 | G80: 1.0001267E+03 | H80: 4.1904E+36 | I80: 1.76415E+09 | J80: =$I80*$G$9 -> 1.11671E+10 | K80: 1.40296E-21 | L80: 500.00 | M80: -4.99306E-03 | N80: 4.21000E-28 | O80: 1.0001267E+12 | P80: 4.19038E+36 | Q80: 1.40296E-21 | R80: -4.99306E-03 | S80: 4.99306E-12 | T80: 1.76368E+07 | U80: 499.99999900 | V80: 4.21000E-28 | W80: 1.76368E+07 | X80: 4.20888E-30 | Y80: 2.83104E-19 | Z80: 2.83104E-19 | AA80: 1.41403E-01
A81: 1.00013E+12 | B81: 4.90549E-10 | C81: 2581.65 | D81: 0.141403 | E81: 0.0000560 | F81: 1.00013E+12 | G81: 1.0001290E+03 | H81: 4.1904E+36 | I81: 1.76416E+09 | J81: =$I81*$G$9 -> 1.11672E+10 | K81: 1.40296E-21 | L81: 500.00 | M81: -4.99311E-03 | N81: 4.21000E-28 | O81: 1.0001290E+12 | P81: 4.19041E+36 | Q81: 1.40296E-21 | R81: -4.99311E-03 | S81: 4.99311E-12 | T81: 1.76370E+07 | U81: 499.99999900 | V81: 4.21000E-28 | W81: 1.76370E+07 | X81: 4.20888E-30 | Y81: 2.83105E-19 | Z81: 2.83105E-19 | AA81: 1.41403E-01
A82: 1.00013E+12 | B82: 4.90551E-10 | C82: 2581.65 | D82: 0.141403 | E82: 0.0000570 | F82: 1.00013E+12 | G82: 1.0001313E+03 | H82: 4.1904E+36 | I82: 1.76418E+09 | J82: =$I82*$G$9 -> 1.11672E+10 | K82: 1.40296E-21 | L82: 500.00 | M82: -4.99317E-03 | N82: 4.21000E-28 | O82: 1.0001313E+12 | P82: 4.19044E+36 | Q82: 1.40296E-21 | R82: -4.99317E-03 | S82: 4.99317E-12 | T82: 1.76371E+07 | U82: 499.99999900 | V82: 4.21000E-28 | W82: 1.76371E+07 | X82: 4.20888E-30 | Y82: 2.83106E-19 | Z82: 2.83106E-19 | AA82: 1.41403E-01
A83: 1.00013E+12 | B83: 4.90552E-10 | C83: 2581.65 | D83: 0.141403 | E83: 0.0000580 | F83: 1.00013E+12 | G83: 1.0001336E+03 | H83: 4.1905E+36 | I83: 1.76419E+09 | J83: =$I83*$G$9 -> 1.11673E+10 | K83: 1.40296E-21 | L83: 500.00 | M83: -4.99323E-03 | N83: 4.21000E-28 | O83: 1.0001336E+12 | P83: 4.19047E+36 | Q83: 1.40296E-21 | R83: -4.99323E-03 | S83: 4.99323E-12 | T83: 1.76372E+07 | U83: 499.99999900 | V83: 4.21000E-28 | W83: 1.76372E+07 | X83: 4.20888E-30 | Y83: 2.83108E-19 | Z83: 2.83108E-19 | AA83: 1.41403E-01
A84: 1.00014E+12 | B84: 4.90553E-10 | C84: 2581.65 | D84: 0.141403 | E84: 0.0000590 | F84: 1.00014E+12 | G84: 1.0001359E+03 | H84: 4.1905E+36 | I84: 1.76420E+09 | J84: =$I84*$G$9 -> 1.11674E+10 | K84: 1.40296E-21 | L84: 500.00 | M84: -4.99329E-03 | N84: 4.21000E-28 | O84: 1.0001359E+12 | P84: 4.19050E+36 | Q84: 1.40296E-21 | R84: -4.99329E-03 | S84: 4.99329E-12 | T84: 1.76373E+07 | U84: 499.99999900 | V84: 4.21000E-28 | W84: 1.76373E+07 | X84: 4.20888E-30 | Y84: 2.83109E-19 | Z84: 2.83109E-19 | AA84: 1.41403E-01
A85: 1.00014E+12 | B85: 4.90554E-10 | C85: 2581.65 | D85: 0.141403 | E85: 0.0000600 | F85: 1.00014E+12 | G85: 1.0001382E+03 | H85: 4.1905E+36 | I85: 1.76421E+09 | J85: =$I85*$G$9 -> 1.11675E+10 | K85: 1.40296E-21 | L85: 500.00 | M85: -4.99334E-03 | N85: 4.21000E-28 | O85: 1.0001382E+12 | P85: 4.19053E+36 | Q85: 1.40296E-21 | R85: -4.99334E-03 | S85: 4.99334E-12 | T85: 1.76374E+07 | U85: 499.99999900 | V85: 4.21000E-28 | W85: 1.76374E+07 | X85: 4.20888E-30 | Y85: 2.83110E-19 | Z85: 2.83110E-19 | AA85: 1.41403E-01
A86: 1.00014E+12 | B86: 4.90555E-10 | C86: 2581.65 | D86: 0.141403 | E86: 0.0000610 | F86: 1.00014E+12 | G86: 1.0001405E+03 | H86: 4.1906E+36 | I86: 1.76422E+09 | J86: =$I86*$G$9 -> 1.11675E+10 | K86: 1.40296E-21 | L86: 500.00 | M86: -4.99340E-03 | N86: 4.21000E-28 | O86: 1.0001405E+12 | P86: 4.19056E+36 | Q86: 1.40296E-21 | R86: -4.99340E-03 | S86: 4.99340E-12 | T86: 1.76376E+07 | U86: 499.99999900 | V86: 4.21000E-28 | W86: 1.76376E+07 | X86: 4.20888E-30 | Y86: 2.83112E-19 | Z86: 2.83112E-19 | AA86: 1.41403E-01
A87: 1.00014E+12 | B87: 4.90556E-10 | C87: 2581.65 | D87: 0.141403 | E87: 0.0000620 | F87: 1.00014E+12 | G87: 1.0001428E+03 | H87: 4.1906E+36 | I87: 1.76424E+09 | J87: =$I87*$G$9 -> 1.11676E+10 | K87: 1.40296E-21 | L87: 500.00 | M87: -4.99346E-03 | N87: 4.21000E-28 | O87: 1.0001428E+12 | P87: 4.19058E+36 | Q87: 1.40296E-21 | R87: -4.99346E-03 | S87: 4.99346E-12 | T87: 1.76377E+07 | U87: 499.99999900 | V87: 4.21000E-28 | W87: 1.76377E+07 | X87: 4.20888E-30 | Y87: 2.83113E-19 | Z87: 2.83113E-19 | AA87: 1.41403E-01
A88: 1.00015E+12 | B88: 4.90557E-10 | C88: 2581.65 | D88: 0.141403 | E88: 0.0000630 | F88: 1.00015E+12 | G88: 1.0001451E+03 | H88: 4.1906E+36 | I88: 1.76425E+09 | J88: =$I88*$G$9 -> 1.11677E+10 | K88: 1.40296E-21 | L88: 500.00 | M88: -4.99352E-03 | N88: 4.21000E-28 | O88: 1.0001451E+12 | P88: 4.19061E+36 | Q88: 1.40296E-21 | R88: -4.99352E-03 | S88: 4.99352E-12 | T88: 1.76378E+07 | U88: 499.99999900 | V88: 4.21000E-28 | W88: 1.76378E+07 | X88: 4.20888E-30 | Y88: 2.83114E-19 | Z88: 2.83114E-19 | AA88: 1.41403E-01
A89: =$F89 -> 1.00015E+12 | B89: =$A89/$G$20 -> 4.90559E-10 | C89: 2581.65 | D89: 0.141403 | E89: 0.0000640 | F89: =$G$15*10^($E89) -> 1.00015E+12 | G89: =$F89*$G$16 -> 1.0001474E+03 | H89: =(4/3)*PI()*$F89^3 -> 4.1906E+36 | I89: =$G$14*$H89 -> 1.76426E+09 | J89: =$I89*$G$9 -> 1.11678E+10 | K89: =(3*I89*$G$6*$L89)/(4*$G$5*PI()*$F89^3) -> 1.40296E-21 | L89: =$G$12 -> 500.00 | M89: =(-3/5)*$G$4*$J89^2/$F89 -> -4.99357E-03 | N89: =$G$14 -> 4.21000E-28 | O89: =$F89+$G89 -> 1.0001474E+12 | P89: 4.19064E+36 | Q89: =$K89*($P89/$H89)^(-5/3) -> 1.40296E-21 | R89: =(-3/5)*$G$4*$J89^2/$O89 -> -4.99357E-03 | S89: =$R89-$M89 -> 4.99357E-12 | T89: =-(3/2)*$K89*$H89*(($P89/$H89)^(-2/3)-1) -> 1.76379E+07 | U89: =$L89*($Q89/$K89)^(2/5) -> 499.99999900 | V89: =$I89/$P89 -> 4.21000E-28 | W89: 1.76379E+07 | X89: 4.20888E-30 | Y89: 2.83116E-19 | Z89: 2.83116E-19 | AA89: =SQRT(2*$W89/$I89) -> 1.41403E-01
A90: 1.00015E+12 | B90: 4.90560E-10 | C90: =$D90*$G$19 -> 2581.65 | D90: =$AA90 -> 0.141403 | E90: 0.0000650 | F90: 1.00015E+12 | G90: 1.0001497E+03 | H90: 4.1907E+36 | I90: 1.76427E+09 | J90: =$I90*$G$9 -> 1.11678E+10 | K90: 1.40296E-21 | L90: 500.00 | M90: -4.99363E-03 | N90: 4.21000E-28 | O90: 1.0001497E+12 | P90: =(4/3)*PI()*$O90^3 -> 4.19067E+36 | Q90: 1.40296E-21 | R90: -4.99363E-03 | S90: 4.99363E-12 | T90: 1.76381E+07 | U90: 499.99999900 | V90: 4.21000E-28 | W90: =$T90-$S90 -> 1.76381E+07 | X90: =$W90/$P90 -> 4.20888E-30 | Y90: =$S90/$W90 -> 2.83117E-19 | Z90: =$S90/$T90 -> 2.83117E-19 | AA90: 1.41403E-01
A91: 1.00015E+12 | B91: 4.90561E-10 | C91: 2581.65 | D91: 0.141403 | E91: 0.0000660 | F91: 1.00015E+12 | G91: 1.0001520E+03 | H91: 4.1907E+36 | I91: 1.76428E+09 | J91: =$I91*$G$9 -> 1.11679E+10 | K91: 1.40296E-21 | L91: 500.00 | M91: -4.99369E-03 | N91: 4.21000E-28 | O91: 1.0001520E+12 | P91: 4.19070E+36 | Q91: 1.40296E-21 | R91: -4.99369E-03 | S91: 4.99369E-12 | T91: 1.76382E+07 | U91: 499.99999900 | V91: 4.21000E-28 | W91: 1.76382E+07 | X91: 4.20888E-30 | Y91: 2.83118E-19 | Z91: 2.83118E-19 | AA91: 1.41403E-01
A92: 1.00015E+12 | B92: 4.90562E-10 | C92: 2581.65 | D92: 0.141403 | E92: 0.0000670 | F92: 1.00015E+12 | G92: 1.0001543E+03 | H92: 4.1907E+36 | I92: 1.76430E+09 | J92: =$I92*$G$9 -> 1.11680E+10 | K92: 1.40296E-21 | L92: 500.00 | M92: -4.99375E-03 | N92: 4.21000E-28 | O92: 1.0001543E+12 | P92: 4.19073E+36 | Q92: 1.40296E-21 | R92: -4.99375E-03 | S92: 4.99375E-12 | T92: 1.76383E+07 | U92: 499.99999900 | V92: 4.21000E-28 | W92: 1.76383E+07 | X92: 4.20888E-30 | Y92: 2.83120E-19 | Z92: 2.83120E-19 | AA92: 1.41403E-01
A93: 1.00016E+12 | B93: 4.90563E-10 | C93: 2581.65 | D93: 0.141403 | E93: 0.0000680 | F93: 1.00016E+12 | G93: 1.0001566E+03 | H93: 4.1908E+36 | I93: 1.76431E+09 | J93: =$I93*$G$9 -> 1.11681E+10 | K93: 1.40296E-21 | L93: 500.00 | M93: -4.99380E-03 | N93: 4.21000E-28 | O93: 1.0001566E+12 | P93: 4.19076E+36 | Q93: 1.40296E-21 | R93: -4.99380E-03 | S93: 4.99380E-12 | T93: 1.76384E+07 | U93: 499.99999900 | V93: 4.21000E-28 | W93: 1.76384E+07 | X93: 4.20888E-30 | Y93: 2.83121E-19 | Z93: 2.83121E-19 | AA93: 1.41403E-01
A94: 1.00016E+12 | B94: 4.90564E-10 | C94: 2581.65 | D94: 0.141403 | E94: 0.0000690 | F94: 1.00016E+12 | G94: 1.0001589E+03 | H94: 4.1908E+36 | I94: 1.76432E+09 | J94: =$I94*$G$9 -> 1.11682E+10 | K94: 1.40296E-21 | L94: 500.00 | M94: -4.99386E-03 | N94: 4.21000E-28 | O94: 1.0001589E+12 | P94: 4.19079E+36 | Q94: 1.40296E-21 | R94: -4.99386E-03 | S94: 4.99386E-12 | T94: 1.76385E+07 | U94: 499.99999900 | V94: 4.21000E-28 | W94: 1.76385E+07 | X94: 4.20888E-30 | Y94: 2.83122E-19 | Z94: 2.83122E-19 | AA94: 1.41403E-01
A95: 1.00016E+12 | B95: 4.90565E-10 | C95: 2581.65 | D95: 0.141403 | E95: 0.0000700 | F95: 1.00016E+12 | G95: 1.0001612E+03 | H95: 4.1908E+36 | I95: 1.76433E+09 | J95: =$I95*$G$9 -> 1.11682E+10 | K95: 1.40296E-21 | L95: 500.00 | M95: -4.99392E-03 | N95: 4.21000E-28 | O95: 1.0001612E+12 | P95: 4.19082E+36 | Q95: 1.40296E-21 | R95: -4.99392E-03 | S95: 4.99392E-12 | T95: 1.76387E+07 | U95: 499.99999900 | V95: 4.21000E-28 | W95: 1.76387E+07 | X95: 4.20889E-30 | Y95: 2.83123E-19 | Z95: 2.83123E-19 | AA95: 1.41403E-01
A96: 1.00016E+12 | B96: 4.90566E-10 | C96: 2581.65 | D96: 0.141403 | E96: 0.0000710 | F96: 1.00016E+12 | G96: 1.0001635E+03 | H96: 4.1908E+36 | I96: 1.76435E+09 | J96: =$I96*$G$9 -> 1.11683E+10 | K96: 1.40296E-21 | L96: 500.00 | M96: -4.99398E-03 | N96: 4.21000E-28 | O96: 1.0001635E+12 | P96: 4.19085E+36 | Q96: 1.40296E-21 | R96: -4.99398E-03 | S96: 4.99398E-12 | T96: 1.76388E+07 | U96: 499.99999900 | V96: 4.21000E-28 | W96: 1.76388E+07 | X96: 4.20888E-30 | Y96: 2.83125E-19 | Z96: 2.83125E-19 | AA96: 1.41403E-01
A97: 1.00017E+12 | B97: 4.90568E-10 | C97: 2581.65 | D97: 0.141403 | E97: 0.0000720 | F97: 1.00017E+12 | G97: 1.0001658E+03 | H97: 4.1909E+36 | I97: 1.76436E+09 | J97: =$I97*$G$9 -> 1.11684E+10 | K97: 1.40296E-21 | L97: 500.00 | M97: -4.99403E-03 | N97: 4.21000E-28 | O97: 1.0001658E+12 | P97: 4.19087E+36 | Q97: 1.40296E-21 | R97: -4.99403E-03 | S97: 4.99403E-12 | T97: 1.76389E+07 | U97: 499.99999900 | V97: 4.21000E-28 | W97: 1.76389E+07 | X97: 4.20888E-30 | Y97: 2.83126E-19 | Z97: 2.83126E-19 | AA97: 1.41403E-01
A98: 1.00017E+12 | B98: 4.90569E-10 | C98: 2581.65 | D98: 0.141403 | E98: 0.0000730 | F98: 1.00017E+12 | G98: 1.0001681E+03 | H98: 4.1909E+36 | I98: 1.76437E+09 | J98: =$I98*$G$9 -> 1.11685E+10 | K98: 1.40296E-21 | L98: 500.00 | M98: -4.99409E-03 | N98: 4.21000E-28 | O98: 1.0001681E+12 | P98: 4.19090E+36 | Q98: 1.40296E-21 | R98: -4.99409E-03 | S98: 4.99409E-12 | T98: 1.76390E+07 | U98: 499.99999900 | V98: 4.21000E-28 | W98: 1.76390E+07 | X98: 4.20888E-30 | Y98: 2.83127E-19 | Z98: 2.83127E-19 | AA98: 1.41403E-01
A99: 1.00017E+12 | B99: 4.90570E-10 | C99: 2581.65 | D99: 0.141403 | E99: 0.0000740 | F99: 1.00017E+12 | G99: 1.0001704E+03 | H99: 4.1909E+36 | I99: 1.76438E+09 | J99: =$I99*$G$9 -> 1.11685E+10 | K99: 1.40296E-21 | L99: 500.00 | M99: -4.99415E-03 | N99: 4.21000E-28 | O99: 1.0001704E+12 | P99: 4.19093E+36 | Q99: 1.40296E-21 | R99: -4.99415E-03 | S99: 4.99415E-12 | T99: 1.76391E+07 | U99: 499.99999900 | V99: 4.21000E-28 | W99: 1.76391E+07 | X99: 4.20888E-30 | Y99: 2.83129E-19 | Z99: 2.83129E-19 | AA99: 1.41403E-01
A100: 1.00017E+12 | B100: 4.90571E-10 | C100: 2581.65 | D100: 0.141403 | E100: 0.0000750 | F100: 1.00017E+12 | G100: 1.0001727E+03 | H100: 4.1910E+36 | I100: 1.76439E+09 | J100: =$I100*$G$9 -> 1.11686E+10 | K100: 1.40296E-21 | L100: 500.00 | M100: -4.99421E-03 | N100: 4.21000E-28 | O100: 1.0001727E+12 | P100: 4.19096E+36 | Q100: 1.40296E-21 | R100: -4.99421E-03 | S100: 4.99421E-12 | T100: 1.76393E+07 | U100: 499.99999900 | V100: 4.21000E-28 | W100: 1.76393E+07 | X100: 4.20888E-30 | Y100: 2.83130E-19 | Z100: 2.83130E-19 | AA100: 1.41403E-01
A101: 1.00018E+12 | B101: 4.90572E-10 | C101: 2581.65 | D101: 0.141403 | E101: 0.0000760 | F101: 1.00018E+12 | G101: 1.0001750E+03 | H101: 4.1910E+36 | I101: 1.76441E+09 | J101: =$I101*$G$9 -> 1.11687E+10 | K101: 1.40296E-21 | L101: 500.00 | M101: -4.99426E-03 | N101: 4.21000E-28 | O101: 1.0001750E+12 | P101: 4.19099E+36 | Q101: 1.40296E-21 | R101: -4.99426E-03 | S101: 4.99426E-12 | T101: 1.76394E+07 | U101: 499.99999900 | V101: 4.21000E-28 | W101: 1.76394E+07 | X101: 4.20888E-30 | Y101: 2.83131E-19 | Z101: 2.83131E-19 | AA101: 1.41403E-01
A102: 1.00018E+12 | B102: 4.90573E-10 | C102: 2581.65 | D102: 0.141403 | E102: 0.0000770 | F102: 1.00018E+12 | G102: 1.0001773E+03 | H102: 4.1910E+36 | I102: 1.76442E+09 | J102: =$I102*$G$9 -> 1.11688E+10 | K102: 1.40296E-21 | L102: 500.00 | M102: -4.99432E-03 | N102: 4.21000E-28 | O102: 1.0001773E+12 | P102: 4.19102E+36 | Q102: 1.40296E-21 | R102: -4.99432E-03 | S102: 4.99432E-12 | T102: 1.76395E+07 | U102: 499.99999900 | V102: 4.21000E-28 | W102: 1.76395E+07 | X102: 4.20888E-30 | Y102: 2.83133E-19 | Z102: 2.83133E-19 | AA102: 1.41403E-01
A103: 1.00018E+12 | B103: 4.90574E-10 | C103: 2581.65 | D103: 0.141403 | E103: 0.0000780 | F103: 1.00018E+12 | G103: 1.0001796E+03 | H103: 4.1910E+36 | I103: 1.76443E+09 | J103: =$I103*$G$9 -> 1.11688E+10 | K103: 1.40296E-21 | L103: 500.00 | M103: -4.99438E-03 | N103: 4.21000E-28 | O103: 1.0001796E+12 | P103: 4.19105E+36 | Q103: 1.40296E-21 | R103: -4.99438E-03 | S103: 4.99438E-12 | T103: 1.76396E+07 | U103: 499.99999900 | V103: 4.21000E-28 | W103: 1.76396E+07 | X103: 4.20888E-30 | Y103: 2.83134E-19 | Z103: 2.83134E-19 | AA103: 1.41403E-01
A104: 1.00018E+12 | B104: 4.90575E-10 | C104: 2581.65 | D104: 0.141403 | E104: 0.0000790 | F104: 1.00018E+12 | G104: 1.0001819E+03 | H104: 4.1911E+36 | I104: 1.76444E+09 | J104: =$I104*$G$9 -> 1.11689E+10 | K104: 1.40296E-21 | L104: 500.00 | M104: -4.99444E-03 | N104: 4.21000E-28 | O104: 1.0001819E+12 | P104: 4.19108E+36 | Q104: 1.40296E-21 | R104: -4.99444E-03 | S104: 4.99444E-12 | T104: 1.76398E+07 | U104: 499.99999900 | V104: 4.21000E-28 | W104: 1.76398E+07 | X104: 4.20888E-30 | Y104: 2.83135E-19 | Z104: 2.83135E-19 | AA104: 1.41403E-01
A105: 1.00018E+12 | B105: 4.90577E-10 | C105: 2581.65 | D105: 0.141403 | E105: 0.0000800 | F105: 1.00018E+12 | G105: 1.0001842E+03 | H105: 4.1911E+36 | I105: 1.76446E+09 | J105: =$I105*$G$9 -> 1.11690E+10 | K105: 1.40296E-21 | L105: 500.00 | M105: -4.99449E-03 | N105: 4.21000E-28 | O105: 1.0001842E+12 | P105: 4.19111E+36 | Q105: 1.40296E-21 | R105: -4.99449E-03 | S105: 4.99449E-12 | T105: 1.76399E+07 | U105: 499.99999900 | V105: 4.21000E-28 | W105: 1.76399E+07 | X105: 4.20888E-30 | Y105: 2.83137E-19 | Z105: 2.83137E-19 | AA105: 1.41403E-01
A106: 1.00019E+12 | B106: 4.90578E-10 | C106: 2581.65 | D106: 0.141403 | E106: 0.0000810 | F106: 1.00019E+12 | G106: 1.0001865E+03 | H106: 4.1911E+36 | I106: 1.76447E+09 | J106: =$I106*$G$9 -> 1.11691E+10 | K106: 1.40296E-21 | L106: 500.00 | M106: -4.99455E-03 | N106: 4.21000E-28 | O106: 1.0001865E+12 | P106: 4.19113E+36 | Q106: 1.40296E-21 | R106: -4.99455E-03 | S106: 4.99455E-12 | T106: 1.76400E+07 | U106: 499.99999900 | V106: 4.21000E-28 | W106: 1.76400E+07 | X106: 4.20888E-30 | Y106: 2.83138E-19 | Z106: 2.83138E-19 | AA106: 1.41403E-01
A107: 1.00019E+12 | B107: 4.90579E-10 | C107: 2581.65 | D107: 0.141403 | E107: 0.0000820 | F107: 1.00019E+12 | G107: 1.0001888E+03 | H107: 4.1912E+36 | I107: 1.76448E+09 | J107: =$I107*$G$9 -> 1.11692E+10 | K107: 1.40296E-21 | L107: 500.00 | M107: -4.99461E-03 | N107: 4.21000E-28 | O107: 1.0001888E+12 | P107: 4.19116E+36 | Q107: 1.40296E-21 | R107: -4.99461E-03 | S107: 4.99461E-12 | T107: 1.76401E+07 | U107: 499.99999900 | V107: 4.21000E-28 | W107: 1.76401E+07 | X107: 4.20888E-30 | Y107: 2.83139E-19 | Z107: 2.83139E-19 | AA107: 1.41403E-01
A108: 1.00019E+12 | B108: 4.90580E-10 | C108: 2581.65 | D108: 0.141403 | E108: 0.0000830 | F108: 1.00019E+12 | G108: 1.0001911E+03 | H108: 4.1912E+36 | I108: 1.76449E+09 | J108: =$I108*$G$9 -> 1.11692E+10 | K108: 1.40296E-21 | L108: 500.00 | M108: -4.99467E-03 | N108: 4.21000E-28 | O108: 1.0001911E+12 | P108: 4.19119E+36 | Q108: 1.40296E-21 | R108: -4.99467E-03 | S108: 4.99467E-12 | T108: 1.76402E+07 | U108: 499.99999900 | V108: 4.21000E-28 | W108: 1.76402E+07 | X108: 4.20888E-30 | Y108: 2.83140E-19 | Z108: 2.83140E-19 | AA108: 1.41403E-01
A109: 1.00019E+12 | B109: 4.90581E-10 | C109: 2581.65 | D109: 0.141403 | E109: 0.0000840 | F109: 1.00019E+12 | G109: 1.0001934E+03 | H109: 4.1912E+36 | I109: 1.76450E+09 | J109: =$I109*$G$9 -> 1.11693E+10 | K109: 1.40296E-21 | L109: 500.00 | M109: -4.99472E-03 | N109: 4.21000E-28 | O109: 1.0001934E+12 | P109: 4.19122E+36 | Q109: 1.40296E-21 | R109: -4.99472E-03 | S109: 4.99472E-12 | T109: 1.76404E+07 | U109: 499.99999900 | V109: 4.21000E-28 | W109: 1.76404E+07 | X109: 4.20888E-30 | Y109: 2.83142E-19 | Z109: 2.83142E-19 | AA109: 1.41403E-01
A110: 1.00020E+12 | B110: 4.90582E-10 | C110: 2581.65 | D110: 0.141403 | E110: 0.0000850 | F110: 1.00020E+12 | G110: 1.0001957E+03 | H110: 4.1913E+36 | I110: 1.76452E+09 | J110: =$I110*$G$9 -> 1.11694E+10 | K110: 1.40296E-21 | L110: 500.00 | M110: -4.99478E-03 | N110: 4.21000E-28 | O110: 1.0001957E+12 | P110: 4.19125E+36 | Q110: 1.40296E-21 | R110: -4.99478E-03 | S110: 4.99478E-12 | T110: 1.76405E+07 | U110: 499.99999900 | V110: 4.21000E-28 | W110: 1.76405E+07 | X110: 4.20888E-30 | Y110: 2.83143E-19 | Z110: 2.83143E-19 | AA110: 1.41403E-01
A111: 1.00020E+12 | B111: 4.90583E-10 | C111: 2581.65 | D111: 0.141403 | E111: 0.0000860 | F111: 1.00020E+12 | G111: 1.0001980E+03 | H111: 4.1913E+36 | I111: 1.76453E+09 | J111: =$I111*$G$9 -> 1.11695E+10 | K111: 1.40296E-21 | L111: 500.00 | M111: -4.99484E-03 | N111: 4.21000E-28 | O111: 1.0001980E+12 | P111: 4.19128E+36 | Q111: 1.40296E-21 | R111: -4.99484E-03 | S111: 4.99484E-12 | T111: 1.76406E+07 | U111: 499.99999900 | V111: 4.21000E-28 | W111: 1.76406E+07 | X111: 4.20888E-30 | Y111: 2.83144E-19 | Z111: 2.83144E-19 | AA111: 1.41403E-01
A112: 1.00020E+12 | B112: 4.90584E-10 | C112: 2581.65 | D112: 0.141403 | E112: 0.0000870 | F112: 1.00020E+12 | G112: 1.0002003E+03 | H112: 4.1913E+36 | I112: 1.76454E+09 | J112: =$I112*$G$9 -> 1.11695E+10 | K112: 1.40296E-21 | L112: 500.00 | M112: -4.99490E-03 | N112: 4.21000E-28 | O112: 1.0002003E+12 | P112: 4.19131E+36 | Q112: 1.40296E-21 | R112: -4.99490E-03 | S112: 4.99490E-12 | T112: 1.76407E+07 | U112: 499.99999900 | V112: 4.21000E-28 | W112: 1.76407E+07 | X112: 4.20888E-30 | Y112: 2.83146E-19 | Z112: 2.83146E-19 | AA112: 1.41403E-01
A113: 1.00020E+12 | B113: 4.90586E-10 | C113: 2581.65 | D113: 0.141403 | E113: 0.0000880 | F113: 1.00020E+12 | G113: 1.0002026E+03 | H113: 4.1913E+36 | I113: 1.76455E+09 | J113: =$I113*$G$9 -> 1.11696E+10 | K113: 1.40296E-21 | L113: 500.00 | M113: -4.99495E-03 | N113: 4.21000E-28 | O113: 1.0002026E+12 | P113: 4.19134E+36 | Q113: 1.40296E-21 | R113: -4.99495E-03 | S113: 4.99495E-12 | T113: 1.76409E+07 | U113: 499.99999900 | V113: 4.21000E-28 | W113: 1.76409E+07 | X113: 4.20888E-30 | Y113: 2.83147E-19 | Z113: 2.83147E-19 | AA113: 1.41403E-01
A114: 1.00020E+12 | B114: 4.90587E-10 | C114: 2581.65 | D114: 0.141403 | E114: 0.0000890 | F114: 1.00020E+12 | G114: 1.0002050E+03 | H114: 4.1914E+36 | I114: 1.76457E+09 | J114: =$I114*$G$9 -> 1.11697E+10 | K114: 1.40296E-21 | L114: 500.00 | M114: -4.99501E-03 | N114: 4.21000E-28 | O114: 1.0002050E+12 | P114: 4.19137E+36 | Q114: 1.40296E-21 | R114: -4.99501E-03 | S114: 4.99501E-12 | T114: 1.76410E+07 | U114: 499.99999900 | V114: 4.21000E-28 | W114: 1.76410E+07 | X114: 4.20888E-30 | Y114: 2.83148E-19 | Z114: 2.83148E-19 | AA114: 1.41403E-01
A115: 1.00021E+12 | B115: 4.90588E-10 | C115: 2581.65 | D115: 0.141403 | E115: 0.0000900 | F115: 1.00021E+12 | G115: 1.0002073E+03 | H115: 4.1914E+36 | I115: 1.76458E+09 | J115: =$I115*$G$9 -> 1.11698E+10 | K115: 1.40296E-21 | L115: 500.00 | M115: -4.99507E-03 | N115: 4.21000E-28 | O115: 1.0002073E+12 | P115: 4.19140E+36 | Q115: 1.40296E-21 | R115: -4.99507E-03 | S115: 4.99507E-12 | T115: 1.76411E+07 | U115: 499.99999900 | V115: 4.21000E-28 | W115: 1.76411E+07 | X115: 4.20888E-30 | Y115: 2.83150E-19 | Z115: 2.83150E-19 | AA115: 1.41403E-01
A116: 1.00021E+12 | B116: 4.90589E-10 | C116: 2581.65 | D116: 0.141403 | E116: 0.0000910 | F116: 1.00021E+12 | G116: 1.0002096E+03 | H116: 4.1914E+36 | I116: 1.76459E+09 | J116: =$I116*$G$9 -> 1.11699E+10 | K116: 1.40296E-21 | L116: 500.00 | M116: -4.99513E-03 | N116: 4.21000E-28 | O116: 1.0002096E+12 | P116: 4.19142E+36 | Q116: 1.40296E-21 | R116: -4.99513E-03 | S116: 4.99513E-12 | T116: 1.76412E+07 | U116: 499.99999900 | V116: 4.21000E-28 | W116: 1.76412E+07 | X116: 4.20888E-30 | Y116: 2.83151E-19 | Z116: 2.83151E-19 | AA116: 1.41403E-01
A117: 1.00021E+12 | B117: 4.90590E-10 | C117: 2581.65 | D117: 0.141403 | E117: 0.0000920 | F117: 1.00021E+12 | G117: 1.0002119E+03 | H117: 4.1915E+36 | I117: 1.76460E+09 | J117: =$I117*$G$9 -> 1.11699E+10 | K117: 1.40296E-21 | L117: 500.00 | M117: -4.99518E-03 | N117: 4.21000E-28 | O117: 1.0002119E+12 | P117: 4.19145E+36 | Q117: 1.40296E-21 | R117: -4.99518E-03 | S117: 4.99518E-12 | T117: 1.76413E+07 | U117: 499.99999900 | V117: 4.21000E-28 | W117: 1.76413E+07 | X117: 4.20888E-30 | Y117: 2.83152E-19 | Z117: 2.83152E-19 | AA117: 1.41403E-01
A118: 1.00021E+12 | B118: 4.90591E-10 | C118: 2581.65 | D118: 0.141403 | E118: 0.0000930 | F118: 1.00021E+12 | G118: 1.0002142E+03 | H118: 4.1915E+36 | I118: 1.76461E+09 | J118: =$I118*$G$9 -> 1.11700E+10 | K118: 1.40296E-21 | L118: 500.00 | M118: -4.99524E-03 | N118: 4.21000E-28 | O118: 1.0002142E+12 | P118: 4.19148E+36 | Q118: 1.40296E-21 | R118: -4.99524E-03 | S118: 4.99524E-12 | T118: 1.76415E+07 | U118: 499.99999900 | V118: 4.21000E-28 | W118: 1.76415E+07 | X118: 4.20888E-30 | Y118: 2.83153E-19 | Z118: 2.83153E-19 | AA118: 1.41403E-01
A119: 1.00022E+12 | B119: 4.90592E-10 | C119: 2581.65 | D119: 0.141403 | E119: 0.0000940 | F119: 1.00022E+12 | G119: 1.0002165E+03 | H119: 4.1915E+36 | I119: 1.76463E+09 | J119: =$I119*$G$9 -> 1.11701E+10 | K119: 1.40296E-21 | L119: 500.00 | M119: -4.99530E-03 | N119: 4.21000E-28 | O119: 1.0002165E+12 | P119: 4.19151E+36 | Q119: 1.40296E-21 | R119: -4.99530E-03 | S119: 4.99530E-12 | T119: 1.76416E+07 | U119: 499.99999900 | V119: 4.21000E-28 | W119: 1.76416E+07 | X119: 4.20888E-30 | Y119: 2.83155E-19 | Z119: 2.83155E-19 | AA119: 1.41403E-01
A120: 1.00022E+12 | B120: 4.90594E-10 | C120: 2581.65 | D120: 0.141403 | E120: 0.0000950 | F120: 1.00022E+12 | G120: 1.0002188E+03 | H120: 4.1915E+36 | I120: 1.76464E+09 | J120: =$I120*$G$9 -> 1.11702E+10 | K120: 1.40296E-21 | L120: 500.00 | M120: -4.99536E-03 | N120: 4.21000E-28 | O120: 1.0002188E+12 | P120: 4.19154E+36 | Q120: 1.40296E-21 | R120: -4.99536E-03 | S120: 4.99536E-12 | T120: 1.76417E+07 | U120: 499.99999900 | V120: 4.21000E-28 | W120: 1.76417E+07 | X120: 4.20888E-30 | Y120: 2.83156E-19 | Z120: 2.83156E-19 | AA120: 1.41403E-01
A121: 1.00022E+12 | B121: 4.90595E-10 | C121: 2581.65 | D121: 0.141403 | E121: 0.0000960 | F121: 1.00022E+12 | G121: 1.0002211E+03 | H121: 4.1916E+36 | I121: 1.76465E+09 | J121: =$I121*$G$9 -> 1.11702E+10 | K121: 1.40296E-21 | L121: 500.00 | M121: -4.99541E-03 | N121: 4.21000E-28 | O121: 1.0002211E+12 | P121: 4.19157E+36 | Q121: 1.40296E-21 | R121: -4.99541E-03 | S121: 4.99541E-12 | T121: 1.76418E+07 | U121: 499.99999900 | V121: 4.21000E-28 | W121: 1.76418E+07 | X121: 4.20888E-30 | Y121: 2.83157E-19 | Z121: 2.83157E-19 | AA121: 1.41403E-01
A122: 1.00022E+12 | B122: 4.90596E-10 | C122: 2581.65 | D122: 0.141403 | E122: 0.0000970 | F122: 1.00022E+12 | G122: 1.0002234E+03 | H122: 4.1916E+36 | I122: 1.76466E+09 | J122: =$I122*$G$9 -> 1.11703E+10 | K122: 1.40296E-21 | L122: 500.00 | M122: -4.99547E-03 | N122: 4.21000E-28 | O122: 1.0002234E+12 | P122: 4.19160E+36 | Q122: 1.40296E-21 | R122: -4.99547E-03 | S122: 4.99547E-12 | T122: 1.76420E+07 | U122: 499.99999900 | V122: 4.21000E-28 | W122: 1.76420E+07 | X122: 4.20888E-30 | Y122: 2.83159E-19 | Z122: 2.83159E-19 | AA122: 1.41403E-01
A123: 1.00023E+12 | B123: 4.90597E-10 | C123: 2581.65 | D123: 0.141403 | E123: 0.0000980 | F123: 1.00023E+12 | G123: 1.0002257E+03 | H123: 4.1916E+36 | I123: 1.76467E+09 | J123: =$I123*$G$9 -> 1.11704E+10 | K123: 1.40296E-21 | L123: 500.00 | M123: -4.99553E-03 | N123: 4.21000E-28 | O123: 1.0002257E+12 | P123: 4.19163E+36 | Q123: 1.40296E-21 | R123: -4.99553E-03 | S123: 4.99553E-12 | T123: 1.76421E+07 | U123: 499.99999900 | V123: 4.21000E-28 | W123: 1.76421E+07 | X123: 4.20888E-30 | Y123: 2.83160E-19 | Z123: 2.83160E-19 | AA123: 1.41403E-01
A124: 1.00023E+12 | B124: 4.90598E-10 | C124: 2581.65 | D124: 0.141403 | E124: 0.0000990 | F124: 1.00023E+12 | G124: 1.0002280E+03 | H124: 4.1917E+36 | I124: 1.76469E+09 | J124: =$I124*$G$9 -> 1.11705E+10 | K124: 1.40296E-21 | L124: 500.00 | M124: -4.99559E-03 | N124: 4.21000E-28 | O124: 1.0002280E+12 | P124: 4.19166E+36 | Q124: 1.40296E-21 | R124: -4.99559E-03 | S124: 4.99559E-12 | T124: 1.76422E+07 | U124: 499.99999900 | V124: 4.21000E-28 | W124: =$T124-$S124 -> 1.76422E+07 | X124: 4.20888E-30 | Y124: 2.83161E-19 | Z124: 2.83161E-19 | AA124: 1.41403E-01
A125: 1.00023E+12 | B125: 4.90599E-10 | C125: 2581.65 | D125: =$AA125 -> 0.141403 | E125: 0.0001000 | F125: 1.00023E+12 | G125: 1.0002303E+03 | H125: 4.1917E+36 | I125: 1.76470E+09 | J125: =$I125*$G$9 -> 1.11705E+10 | K125: 1.40296E-21 | L125: 500.00 | M125: -4.99564E-03 | N125: 4.21000E-28 | O125: 1.0002303E+12 | P125: 4.19168E+36 | Q125: 1.40296E-21 | R125: -4.99564E-03 | S125: 4.99564E-12 | T125: 1.76423E+07 | U125: 499.99999900 | V125: 4.21000E-28 | W125: 1.76423E+07 | X125: 4.20888E-30 | Y125: 2.83163E-19 | Z125: 2.83163E-19 | AA125: 1.41403E-01

Sheet z vs H table
A2: cosmic redshift z | B2: 1/a | C2: gas H = vi/re | D2: gas H/H0: | E2: ΛCDM H: | F2: ΛCDM H/H0: | G2: gas/ΛCDM: | H2: gas H/H0 corrected for entropy | I2: gas/ΛCDM corrected for entropy | L2: POLYNOMIAL CURVE FIT, HIGH Z
A3: 0 | B3: 1 | C3: 1.373453737e-18 | D3: 0.628854337 | E3: 2.18306306e-18 | F3: 0.9995448964 | G3: 0.629140661 | H3: =D3/($M$6+$M$7*B3+$M$8*B3^2) -> 0.5552546542 | I3: =H3/F3 -> 0.5555074676 | L3: z = 19 to 999
A4: 0.1 | B4: =1+A4 -> 1.1 | C4: 1.584540758e-18 | D4: 0.7255033799 | E4: 2.291782329e-18 | F4: 1.049323482 | G4: 0.6914010719 | H4: =D4/($M$6+$M$7*B4+$M$8*B4^2) -> 0.640601265 | I4: =H4/F4 -> 0.6104897834 | L4: y = C(0) + C(1)*x + C(2)*x^2 + ...
A5: 0.2 | B5: =1+A5 -> 1.2 | C5: 1.80545466e-18 | D5: 0.8266517925 | E5: 2.415739489e-18 | F5: 1.106078941 | G5: 0.7473714233 | H5: 0.7299232016 | I5: 0.6599196264 | L5: Coefficients
A6: 0.3 | B6: 1.3 | C6: 2.035770643e-18 | D6: 0.932105075 | E6: 2.554444057e-18 | F6: 1.1695867 | G6: 0.796952526 | H6: 0.8230488908 | I6: 0.7037091741 | L6: C(00) = | M6: 1.13271306
A7: 0.4 | B7: 1.4 | C7: 2.275132848e-18 | D7: 1.041700292 | E7: 2.707259824e-18 | F7: 1.239555462 | G7: 0.8403821564 | H7: 0.9198346217 | I7: 0.7420681443 | L7: C(01) = | M7: -1.619E-04
A8: 0.5 | B8: 1.5 | C8: 2.523197128e-18 | D8: 1.155279872 | E8: 2.873471817e-18 | F8: 1.315657868 | G8: 0.8781005308 | H8: 1.020141411 | I8: 0.7753850265 | L8: C(02) = | M8: 2.603032087e-08
A9: 0.6 | B9: 1.6 | C9: 2.779674272e-18 | D9: 1.272711395 | E9: 3.052338142e-18 | F9: 1.397554229 | G9: 0.9106704901 | H9: 1.123852477 | I9: 0.8041566142
A10: 0.7 | B10: 1.7 | C10: 3.044304632e-18 | D10: 1.393875979 | E10: 3.243126642e-18 | F10: 1.48490932 | G10: 0.9386943429 | H10: 1.230862988 | I10: 0.8289145817 | L10: Correlation coefficient is 0.999998108135
A11: 0.8 | B11: 1.8 | C11: 3.316827432e-18 | D11: 1.518654222 | E11: 3.445138501e-18 | F11: 1.577403177 | G11: 0.9627559038 | H11: 1.341067645 | I11: 0.850174302 | L11: Standard error about the line = 7.93563562163e-005
A12: 0.9 | B12: 1.9 | C12: 3.597036702e-18 | D12: 1.646951819 | E12: 3.657721688e-18 | F12: 1.67473726 | G12: 0.983409075 | H12: 1.454383308 | I12: 0.8684247629
A13: 1 | B13: 2 | C13: 3.884670388e-18 | D13: 1.778648786 | E13: 3.880277129e-18 | F13: 1.776637273 | G13: 1.001132202 | H13: 1.57070415 | I13: 0.8840882571
A14: 1.1 | B14: 2.1 | C14: 4.179678271e-18 | D14: 1.913722128 | E14: 4.112260022e-18 | F14: 1.882853773 | G14: 1.016394452 | H14: 1.690009996 | I14: 0.8975789946
A15: 1.2 | B15: 2.2 | C15: 4.481757273e-18 | D15: 2.052033078 | E15: 4.353178137e-18 | F15: 1.993161384 | G15: 1.029536842 | H15: 1.812178425 | I15: 0.9091980405
A16: 1.3 | B16: 2.3 | C16: 4.790778675e-18 | D16: 2.193522699 | E16: 4.602588415e-18 | F16: 2.107357248 | G16: 1.040887919 | H16: 1.937157512 | I16: 0.9192354613
A17: 1.4 | B17: 2.4 | C17: 5.106586061e-18 | D17: 2.338119375 | E17: 4.860092746e-18 | F17: 2.225259082 | G17: 1.050717821 | H17: 2.064884128 | I17: 0.9279297609
A18: 1.5 | B18: 2.5 | C18: 5.429055659e-18 | D18: 2.485766434 | E18: 5.125333493e-18 | F18: 2.34670314 | G18: 1.059259006 | H18: 2.195308344 | I18: 0.935486175
A19: 1.6 | B19: 2.6 | C19: 5.758032032e-18 | D19: 2.636392708 | E19: 5.397989094e-18 | F19: 2.471542187 | G19: 1.066699456 | H19: 2.32836742 | I19: 0.9420706763
A20: 1.7 | B20: 2.7 | C20: 6.093409997e-18 | D20: 2.789950037 | E20: 5.677769936e-18 | F20: 2.599643623 | G20: 1.073204808 | H20: 2.464018936 | I20: 0.9478295077
A21: 1.8 | B21: 2.8 | C21: 6.435034364e-18 | D21: 2.946367366 | E21: 5.964414594e-18 | F21: 2.73088775 | G21: 1.078904604 | H21: 2.602200247 | I21: 0.952877044
A22: 1.9 | B22: 2.9 | C22: 6.782833466e-18 | D22: 3.105611881 | E22: 6.257686453e-18 | F22: 2.865166231 | G22: 1.083920314 | H22: 2.74288248 | I22: 0.957320539
A23: 2 | B23: 3 | C23: 7.136686578e-18 | D23: 3.267628306 | E23: 6.557370728e-18 | F23: 3.002380722 | G23: 1.088345752 | H23: 2.886016922 | I23: 0.9612428234
A24: 2.1 | B24: 3.1 | C24: 7.496469747e-18 | D24: 3.432359887 | E24: 6.86327184e-18 | F24: 3.142441676 | G24: 1.0922589 | H24: 3.031553552 | I24: 0.9647127501
A25: 2.2 | B25: 3.2 | C25: 7.862106684e-18 | D25: 3.599771696 | E25: 7.175211132e-18 | F25: 3.285267293 | G25: 1.095731755 | H25: 3.17946162 | I25: 0.9677938922
A26: 2.3 | B26: 3.3 | C26: 8.233514795e-18 | D26: 3.769825913 | E26: 7.493024875e-18 | F26: 3.430782606 | G26: 1.098823897 | H26: 3.329707826 | I26: 0.9705388562
A27: 2.4 | B27: 3.4 | C27: 8.610593212e-18 | D27: 3.942476358 | E27: 7.816562541e-18 | F27: 3.578918695 | G27: 1.101583102 | H27: 3.482251478 | I27: 0.9729898261
A28: 2.5 | B28: 3.5 | C28: 8.993234516e-18 | D28: 4.117673845 | E28: 8.145685301e-18 | F28: 3.729611994 | G28: 1.104048853 | H28: 3.637049233 | I28: 0.9751816646
A29: 2.6 | B29: 3.6 | C29: 9.381410108e-18 | D29: 4.295405281 | E29: 8.480264716e-18 | F29: 3.882803696 | G29: 1.106263828 | H29: 3.794089618 | I29: 0.9771520568
A30: 2.7 | B30: 3.7 | C30: 9.775002756e-18 | D30: 4.475616989 | E30: 8.820181607e-18 | F30: 4.038439234 | G30: 1.108254137 | H30: 3.953325319 | I30: 0.9789240569
A31: 2.8 | B31: 3.8 | C31: 1.017394923e-17 | D31: 4.658280019 | E31: 9.165325066e-18 | F31: 4.196467827 | G31: 1.110047833 | H31: 4.114730857 | I31: 0.9805224361
A32: 2.9 | B32: 3.9 | C32: 1.057818088e-17 | D32: 4.843362939 | E32: 9.515591596e-18 | F32: 4.356842087 | G32: 1.111668232 | H32: 4.278278559 | I32: 0.9819677816
A33: 3 | B33: 4 | C33: 1.098763812e-17 | D33: 5.030838464 | E33: 9.870884355e-18 | F33: 4.519517673 | G33: 1.113136141 | H33: 4.443944416 | I33: 0.9832784685
A34: 3.1 | B34: 4.1 | C34: 1.140224564e-17 | D34: 5.220672114 | E34: 1.02311125e-17 | F34: 4.684452994 | G34: 1.11446782 | H34: 4.61169806 | I34: 0.9844688518
A35: 3.2 | B35: 4.2 | C35: 1.182192173e-17 | D35: 5.412826478 | E35: 1.059619061e-17 | F35: 4.851608936 | G35: 1.115676583 | H35: 4.781506532 | I35: 0.9855506895
A36: 3.3 | B36: 4.3 | C36: 1.224664925e-17 | D36: 5.607293709 | E36: 1.096603818e-17 | F36: 5.020948636 | G36: 1.116779739 | H36: 4.953362989 | I36: 0.9865392673
A37: 3.4 | B37: 4.4 | C37: 1.267631556e-17 | D37: 5.804022227 | E37: 1.134057914e-17 | F37: 5.192437276 | G37: 1.117783792 | H37: 5.127221952 | I37: 0.9874403252
A38: 3.5 | B38: 4.5 | C38: 1.311090653e-17 | D38: 6.003005572 | E38: 1.171974153e-17 | F38: 5.366041896 | G38: 1.118702703 | H38: 5.303077801 | I38: 0.988266194
A39: 3.6 | B39: 4.6 | C39: 1.355036006e-17 | D39: 6.204215303 | E39: 1.210345708e-17 | F39: 5.541731237 | G39: 1.119544604 | H39: 5.480905495 | I39: 0.9890240541
A40: 3.7 | B40: 4.7 | C40: 1.399461318e-17 | D40: 6.407622591 | E40: 1.24916609e-17 | F40: 5.719475599 | G40: 1.120316449 | H40: 5.66067965 | I40: 0.9897200455
A41: 3.8 | B41: 4.8 | C41: 1.444362695e-17 | D41: 6.613209608 | E41: 1.288429126e-17 | F41: 5.89924671 | G41: 1.121026113 | H41: 5.842384601 | I41: 0.9903611238
A42: 3.9 | B42: 4.9 | C42: 1.489732573e-17 | D42: 6.820941721 | E42: 1.328128928e-17 | F42: 6.081017613 | G42: 1.121677679 | H42: 6.02598983 | I42: 0.9909508924
A43: 4 | B43: 5 | C43: 1.535568822e-17 | D43: 7.030809174 | E43: 1.368259873e-17 | F43: 6.264762565 | G43: 1.122278634 | H43: 6.211486803 | I43: 0.9914959646
A44: 4.1 | B44: 5.1 | C44: 1.581865888e-17 | D44: 7.242786546 | E44: 1.408816585e-17 | F44: 6.450456946 | G44: 1.122833096 | H44: 6.398853139 | I44: 0.9919999765
A45: 4.2 | B45: 5.2 | C45: 1.628619194e-17 | D45: 7.456852867 | E45: 1.449793913e-17 | F45: 6.638077172 | G45: 1.123345311 | H45: 6.588070393 | I45: 0.992466677
A46: 4.3 | B46: 5.3 | C46: 1.675822799e-17 | D46: 7.672980946 | E46: 1.491186916e-17 | F46: 6.827600628 | G46: 1.123818068 | H46: 6.779114619 | I46: 0.9928985289
A47: 4.4 | B47: 5.4 | C47: 1.723475107e-17 | D47: 7.891163472 | E47: 1.532990852e-17 | F47: 7.019005592 | G47: 1.124256616 | H47: 6.971979436 | I47: 0.9933001683
A48: 4.5 | B48: 5.5 | C48: 1.771569781e-17 | D48: 8.111371431 | E48: 1.575201159e-17 | F48: 7.212271184 | G48: 1.124662568 | H48: 7.166639288 | I48: 0.99367302
A49: 4.6 | B49: 5.6 | C49: 1.820105594e-17 | D49: 8.333599205 | E49: 1.617813448e-17 | F49: 7.4073773 | G49: 1.125040465 | H49: 7.363089286 | I49: 0.9940210939
A50: 4.7 | B50: 5.7 | C50: 1.869072453e-17 | D50: 8.557800579 | E50: 1.660823487e-17 | F50: 7.604304571 | G50: 1.125388982 | H50: 7.561288676 | I50: 0.9943432177
A51: 4.8 | B51: 5.8 | C51: 1.918476709e-17 | D51: 8.784004634 | E51: 1.704227196e-17 | F51: 7.803034311 | G51: 1.125716521 | H51: 7.761263224 | I51: 0.9946468148
A52: 4.9 | B52: 5.9 | C52: 1.968303767e-17 | D52: 9.012144548 | E52: 1.748020633e-17 | F52: 8.003548479 | G52: 1.126018612 | H52: 7.962953965 | I52: 0.9949279356
A53: 5 | B53: 6 | C53: 2.018556538e-17 | D53: 9.242233644 | E53: 1.792199992e-17 | F53: 8.205829635 | G53: 1.126300942 | H53: 8.166372745 | I53: 0.9951916025
A54: 5.1 | B54: 6.1 | C54: 2.069232838e-17 | D54: 9.474261926 | E54: 1.836761586e-17 | F54: 8.409860913 | G54: 1.126565828 | H54: 8.371510803 | I54: 0.995439864
A55: 5.2 | B55: 6.2 | C55: 2.120324039e-17 | D55: 9.708189888 | E55: 1.88170185e-17 | F55: 8.61562598 | G55: 1.126811901 | H55: 8.578333306 | I55: 0.9956715074
A56: 5.3 | B56: 6.3 | C56: 2.171827734e-17 | D56: 9.94400651 | E56: 1.927017328e-17 | F56: 8.823109013 | G56: 1.127041103 | H56: 8.786830588 | I56: 0.9958882493
A57: 5.4 | B57: 6.4 | C57: 2.223743392e-17 | D57: 10.18170936 | E57: 1.972704668e-17 | F57: 9.032294667 | G57: 1.127256111 | H57: 8.997000571 | I57: 0.9960924553
A58: 5.5 | B58: 6.5 | C58: 2.276065526e-17 | D58: 10.42127331 | E58: 2.018760618e-17 | F58: 9.243168051 | G58: 1.127456869 | H58: 9.208821125 | I58: 0.9962840742
A59: 5.6 | B59: 6.6 | C59: 2.328788539e-17 | D59: 10.66267274 | E59: 2.06518202e-17 | F59: 9.455714707 | G59: 1.127643237 | H59: 9.422269677 | I59: 0.9964629823
A60: 5.7 | B60: 6.7 | C60: 2.381918512e-17 | D60: 10.9059355 | E60: 2.111965805e-17 | F60: 9.669920583 | G60: 1.127820586 | H60: 9.637370903 | I60: 0.9966339247
A61: 5.8 | B61: 6.8 | C61: 2.435442891e-17 | D61: 11.1510041 | E61: 2.159108989e-17 | F61: 9.885772018 | G61: 1.127985156 | H61: 9.854074071 | I61: 0.9967935791
A62: 5.9 | B62: 6.9 | C62: 2.489362018e-17 | D62: 11.3978801 | E62: 2.206608669e-17 | F62: 10.10325572 | G62: 1.128139327 | H62: 10.07238064 | I62: 0.9969440472
A63: 6 | B63: 7 | C63: 2.543670541e-17 | D63: 11.64653901 | E63: 2.254462019e-17 | F63: 10.32235874 | G63: 1.128282721 | H63: 10.29226903 | I63: 0.997084996
A64: 6.1 | B64: 7.1 | C64: 2.598375687e-17 | D64: 11.8970139 | E64: 2.302666287e-17 | F64: 10.54306849 | G64: 1.128420433 | H64: 10.51376853 | I64: 0.9972209267
A65: 6.2 | B65: 7.2 | C65: 2.653464034e-17 | D65: 12.14924334 | E65: 2.351218788e-17 | F65: 10.76537267 | G65: 1.128548329 | H65: 10.73682491 | I65: 0.9973481864
A66: 6.3 | B66: 7.3 | C66: 2.708937061e-17 | D66: 12.40323408 | E66: 2.400116907e-17 | F66: 10.98925931 | G66: 1.128668796 | H66: 10.96144422 | I66: 0.9974688841
A67: 6.4 | B67: 7.4 | C67: 2.764790138e-17 | D67: 12.65896493 | E67: 2.449358092e-17 | F67: 11.21471672 | G67: 1.128781515 | H67: 11.1876078 | I67: 0.9975827365
A68: 6.5 | B68: 7.5 | C68: 2.821017117e-17 | D68: 12.91640775 | E68: 2.498939852e-17 | F68: 11.44173351 | G68: 1.128885561 | H68: =D68/($M$6+$M$7*B68+$M$8*B68^2) -> 11.41529083 | I68: =H68/F68 -> 0.9976889271
A69: 6.6 | B69: =1+A69 -> 7.6 | C69: 2.877629028e-17 | D69: 13.17561303 | E69: 2.548859755e-17 | F69: 11.67029852 | G69: 1.128986804 | H69: 11.644538 | I69: 0.9977926426
A70: 6.7 | B70: 7.7 | C70: 2.934607152e-17 | D70: 13.43649506 | E70: 2.599115425e-17 | F70: 11.90040089 | G70: 1.129079195 | H70: 11.87527364 | I70: 0.9978885378
A71: 6.8 | B71: 7.8 | C71: 2.991959508e-17 | D71: 13.69909057 | E71: 2.649704539e-17 | F71: 12.13202998 | G71: 1.12916722 | H71: 12.10753027 | I71: 0.9979805758
A72: 6.9 | B72: 7.9 | C72: 3.049681269e-17 | D72: 13.96337744 | E72: 2.700624829e-17 | F72: 12.3651754 | G72: 1.129250252 | H72: 12.3412884 | I72: 0.9980682038
A73: 7 | B73: 8 | C73: 3.107772208e-17 | D73: 14.22935465 | E73: 2.751874072e-17 | F73: 12.59982698 | G73: 1.129329369 | H73: 12.5765472 | I73: 0.9981523725
A74: 7.1 | B74: 8.1 | C74: 3.166228156e-17 | D74: 14.4970031 | E74: 2.803450097e-17 | F74: 12.83597478 | G74: 1.129404144 | H74: 12.81328984 | I74: 0.9982327063
A75: 7.2 | B75: 8.2 | C75: 3.225037942e-17 | D75: 14.76627165 | E75: 2.855350778e-17 | F75: 13.07360905 | G75: 1.129471716 | H75: 13.05147118 | I75: 0.9983066753
A76: 7.3 | B76: 8.3 | C76: 3.284212648e-17 | D76: 15.03721103 | E76: 2.907574031e-17 | F76: 13.31272027 | G76: 1.129537069 | H76: 13.29113615 | I76: 0.9983786845
A77: 7.4 | B77: 8.4 | C77: 3.343747811e-17 | D77: 15.30980081 | E77: 2.960117818e-17 | F77: 13.55329909 | G77: 1.129599569 | H77: 13.53226672 | I77: 0.9984481735
A78: 7.5 | B78: 8.5 | C78: 3.403632091e-17 | D78: 15.58398907 | E78: 3.012980141e-17 | F78: 13.79533637 | G78: 1.129656331 | H78: 13.77481708 | I78: 0.9985125923
A79: 7.6 | B79: 8.6 | C79: 3.463869666e-17 | D79: 15.85979494 | E79: 3.066159041e-17 | F79: 14.03882315 | G79: 1.129709718 | H79: 14.0188042 | I79: 0.9985740295
A80: 7.7 | B80: 8.7 | C80: 3.524467253e-17 | D80: 16.13724917 | E80: 3.119652599e-17 | F80: 14.28375062 | G80: 1.129762735 | H80: 14.26425531 | I80: 0.9986351406
A81: 7.8 | B81: 8.8 | C81: 3.585405819e-17 | D81: 16.41626462 | E81: 3.173458931e-17 | F81: 14.53011018 | G81: 1.129810058 | H81: 14.51109345 | I81: 0.9986912195
A82: 7.9 | B82: 8.9 | C82: 3.646694664e-17 | D82: 16.69688388 | E82: 3.227576191e-17 | F82: 14.77789336 | G82: 1.129855486 | H82: 14.75935633 | I82: 0.9987456243
A83: 8 | B83: 9 | C83: 3.708324078e-17 | D83: 16.97906247 | E83: 3.282002566e-17 | F83: 15.02709187 | G83: 1.129896764 | H83: 15.0090047 | I83: 0.9987963625
A84: 8.1 | B84: 9.1 | C84: 3.770303949e-17 | D84: 17.26284568 | E84: 3.336736278e-17 | F84: 15.27769756 | G84: 1.12993765 | H84: 15.26007863 | I84: 0.9988467549
A85: 8.2 | B85: 9.2 | C85: 3.832624004e-17 | D85: 17.54818646 | E85: 3.39177558e-17 | F85: 15.52970243 | G85: 1.129975706 | H85: 15.51253662 | I85: 0.9988946461
A86: 8.3 | B86: 9.3 | C86: 3.895282258e-17 | D86: 17.83507574 | E86: 3.447118758e-17 | F86: 15.78309864 | G86: 1.130011042 | H86: 15.76637068 | I86: 0.9989401341
A87: 8.4 | B87: 9.4 | C87: 3.958277336e-17 | D87: 18.12350721 | E87: 3.502764126e-17 | F87: 16.03787848 | G87: 1.130043929 | H87: 16.0215753 | I87: 0.9989834582
A88: 8.5 | B88: 9.5 | C88: 4.021611876e-17 | D88: 18.41349295 | E88: 3.558710031e-17 | F88: 16.29403436 | G88: 1.130075741 | H88: 16.27816124 | I88: 0.9990258325
A89: 8.6 | B89: 9.6 | C89: 4.085276544e-17 | D89: 18.70499023 | E89: 3.614954846e-17 | F89: 16.55155884 | G89: 1.130104446 | H89: 16.53609076 | I89: 0.9990654609
A90: 8.7 | B90: 9.7 | C90: 4.149267465e-17 | D90: 18.9979813 | E90: 3.671496973e-17 | F90: 16.8104446 | G90: 1.130129616 | H90: 16.79534823 | I90: 0.9991019649
A91: 8.8 | B91: 9.8 | C91: 4.213604046e-17 | D91: 19.29255502 | E91: 3.728334839e-17 | F91: 17.07068444 | G91: 1.130157088 | H91: 17.05601226 | I91: 0.9991405043
A92: 8.9 | B92: 9.9 | C92: 4.278263304e-17 | D92: 19.58860617 | E92: 3.785466901e-17 | F92: 17.3322713 | G92: 1.130181142 | H92: 17.3179899 | I92: 0.9991760223
A93: 9 | B93: 10 | C93: 4.34324542e-17 | D93: 19.88613556 | E93: 3.842891637e-17 | F93: 17.59519821 | G93: 1.130202418 | H93: 17.58128191 | I93: 0.9992090854
A94: 9.1 | B94: 10.1 | C94: 4.408551474e-17 | D94: 20.18514814 | E94: 3.900607553e-17 | F94: 17.85945832 | G94: 1.130221745 | H94: 17.84589273 | I94: 0.9992404254
A95: 9.2 | B95: 10.2 | C95: 4.474195969e-17 | D95: 20.48571033 | E95: 3.958613178e-17 | F95: 18.12504491 | G95: 1.130243287 | H95: 18.11188113 | I95: 0.9992737244
A96: 9.3 | B96: 10.3 | C96: 4.540152907e-17 | D96: 20.78770307 | E96: 4.016907064e-17 | F96: 18.39195134 | G96: 1.130260879 | H96: 18.37914192 | I96: 0.9993035315
A97: 9.4 | B97: 10.4 | C97: 4.606432257e-17 | D97: 21.09117203 | E97: 4.075487786e-17 | F97: 18.66017108 | G97: 1.130277527 | H97: 18.64771551 | I97: 0.9993325051
A98: 9.5 | B98: 10.5 | C98: 4.673025442e-17 | D98: 21.39607791 | E98: 4.134353941e-17 | F98: 18.92969772 | G98: 1.130291578 | H98: 18.91756723 | I98: 0.9993591824
A99: 9.6 | B99: 10.6 | C99: 4.73994095e-17 | D99: 21.7024596 | E99: 4.193504147e-17 | F99: 19.20052492 | G99: 1.130305535 | H99: 19.18873151 | I99: 0.9993857767
A100: 9.7 | B100: 10.7 | C100: 4.807170542e-17 | D100: 22.01027937 | E100: 4.252937044e-17 | F100: 19.47264647 | G100: 1.130317823 | H100: 19.46117504 | I100: 0.9994108954
A101: 9.8 | B101: 10.8 | C101: 4.874721972e-17 | D101: 22.31957271 | E101: 4.312651293e-17 | F101: 19.74605622 | G101: 1.130330658 | H101: 19.73492927 | I101: 0.9994364978
A102: 9.9 | B102: 10.9 | C102: 4.942586884e-17 | D102: 22.63030137 | E102: 4.372645572e-17 | F102: 20.02074812 | G102: 1.130342444 | H102: 20.00996042 | I102: 0.9994611739
A103: 10 | B103: 11 | C103: 5.010759821e-17 | D103: 22.94244037 | E103: 3.450532674e-07 | F103: 20.29671624 | G103: 1.130352324 | H103: 20.28624646 | I103: 0.999484164
A104: 11 | B104: 12 | C104: 5.70934623e-17 | D104: 26.14101256 | E104: 5.050705624e-17 | F104: 23.12533762 | G104: 1.130405661 | H104: 23.11779586 | I104: 0.9996738744
A105: 12 | B105: 13 | C105: 6.437680852e-17 | D105: 29.47579097 | E105: 5.69506216e-17 | F105: 26.07561102 | G105: 1.130396942 | H105: 26.07062291 | I105: 0.999808706
A106: 13 | B106: 14 | C106: 7.194600033e-17 | D106: 32.94144763 | E106: 6.364944914e-17 | F106: 29.14275965 | G106: 1.130347573 | H106: 29.14006599 | I106: 0.99990757
A107: 14 | B107: 15 | C107: 7.979056317e-17 | D107: 36.53318664 | E107: 7.0594293e-17 | F107: 32.32255018 | G107: 1.130269315 | H107: 32.32193146 | I107: 0.999980858
A108: 15 | B108: 16 | C108: 8.790098276e-17 | D108: 40.24665175 | E108: 7.777688179e-17 | F108: 35.61119543 | G108: 1.130168512 | H108: 35.61241234 | I108: 1.000034172
A109: 16 | B109: 17 | C109: 9.626934597e-17 | D109: 44.07821983 | E109: 8.518975668e-17 | F109: 39.00528028 | G109: 1.130057764 | H109: 39.0083482 | I109: 1.000078654
A110: 17 | B110: 18 | C110: 1.048872523e-16 | D110: 48.02404458 | E110: 9.282614541e-17 | F110: 42.50170397 | G110: 1.129932217 | H110: 42.50637928 | I110: 1.000110003
A111: 18 | B111: 19 | C111: 1.137482608e-16 | D111: 52.08117699 | E111: 1.006798624e-16 | F111: 46.09763432 | G111: 1.129801513 | H111: 46.10393819 | I111: 1.00013675
A112: 19 | B112: 20 | C112: 1.228455759e-16 | D112: 56.24650553 | E112: 1.087452282e-16 | F112: 49.79047098 | G112: 1.129664059 | H112: 49.79831212 | I112: 1.000157483
A113: 20 | B113: 21 | C113: 1.321731389e-16 | D113: 60.51725619 | E113: 1.170170042e-16 | F113: 53.57781528 | G113: 1.129520789 | H113: 53.58708562 | I113: 1.000173026
A114: 29 | B114: 30 | C114: 2.256818249e-16 | D114: 103.3314706 | E114: 2.000480716e-16 | F114: 91.59471055 | G114: 1.128137967 | H114: 91.61561491 | I114: 1.000228227
A115: 39 | B115: 40 | C115: 3.47459349e-16 | D115: 159.0889542 | E115: 3.084325541e-16 | F115: 141.2200092 | G115: 1.126532671 | H115: 141.2516741 | I115: 1.000224224
A116: 49 | B116: 50 | C116: 4.855897898e-16 | D116: 222.3338414 | E116: 4.316659905e-16 | F116: 197.6441019 | G116: 1.124920194 | H116: 197.6854482 | I116: 1.000209196
A117: 59 | B117: 60 | C117: 6.383244889e-16 | D117: 292.2654856 | E117: 5.682540805e-16 | F117: 260.182803 | G117: 1.123308236 | H117: 260.2322248 | I117: 1.00018995
A118: 69 | B118: 70 | C118: 8.043792437e-16 | D118: 368.295897 | E118: 7.171080821e-16 | F118: 328.3376174 | G118: 1.121698756 | H118: 328.3928493 | I118: 1.000168217
A119: 79 | B119: 80 | C119: 9.827646072e-16 | D119: 449.9720442 | E119: 8.773906247e-16 | F119: 401.7251436 | G119: 1.12009928 | H119: 401.7856858 | I119: 1.000150706
A120: 89 | B120: 90 | C120: 1.172676264e-15 | D120: 536.9256601 | E120: 1.048432894e-15 | F120: 480.0391557 | G120: 1.118503884 | H120: 480.1025866 | I120: 1.000132137
A121: 90 | B121: 91 | C121: 1.192273564e-15 | D121: 545.8985489 | E121: 1.06610691e-15 | F121: 488.1314428 | G121: 1.118343342 | H121: 488.1944725 | I121: 1.000129124
A122: 91 | B122: 92 | C122: 1.211982117e-15 | D122: 554.922376 | E122: 1.083882464e-15 | F122: 496.2702204 | G122: 1.118185926 | H122: 496.3341703 | I122: 1.000128861
A123: 92 | B123: 93 | C123: 1.231795996e-15 | D123: 563.9944279 | E123: 1.10175907e-15 | F123: 504.4552657 | G123: 1.118026644 | H123: 504.5192718 | I123: 1.000126882
A124: 93 | B124: 94 | C124: 1.251716058e-15 | D124: 573.115097 | E124: 1.119736249e-15 | F124: 512.6863599 | G124: 1.117866871 | H124: 512.750146 | I124: 1.000124415
A125: 94 | B125: 95 | C125: 1.271744235e-15 | D125: 582.2852683 | E125: 1.137813532e-15 | F125: 520.9632878 | G125: 1.117708833 | H125: 521.0276029 | I125: 1.000123454
A126: 95 | B126: 96 | C126: 1.291875763e-15 | D126: 591.5027604 | E126: 1.155990456e-15 | F126: 529.2858377 | G126: 1.117548814 | H126: 529.3497089 | I126: 1.000120674
A127: 96 | B127: 97 | C127: 1.312113656e-15 | D127: 600.7689528 | E127: 1.174266566e-15 | F127: 537.6538015 | G127: 1.117389947 | H127: 537.7177163 | I127: 1.000118877
A128: 97 | B128: 98 | C128: 1.332457797e-15 | D128: 610.0837924 | E128: 1.192641415e-15 | F128: 546.0669743 | G128: 1.117232539 | H128: 546.1315957 | I128: 1.00011834
A129: 98 | B129: 99 | C129: 1.352904441e-15 | D129: 619.4455645 | E129: 1.211114563e-15 | F129: 554.5251546 | G129: 1.117073877 | H129: 554.5898301 | I129: 1.000116632
A130: 99 | B130: 100 | C130: 1.373453737e-15 | D130: 628.854337 | E130: 1.229685577e-15 | F130: 563.0281441 | G130: 1.116914569 | H130: 563.0924978 | I130: 1.000114299
A131: 99 | B131: =1+A131 -> 100 | C131: 1.373453737e-15 | D131: 628.854337 | E131: 1.229685577e-15 | F131: 563.0281441 | G131: 1.116914569 | H131: 563.0924978 | I131: 1.000114299
A132: 99 | B132: 100 | C132: 1.373453737e-15 | D132: 628.854337 | E132: 1.229685577e-15 | F132: 563.0281441 | G132: 1.116914569 | H132: =D132/($M$6+$M$7*B132+$M$8*B132^2) -> 563.0924978 | I132: =H132/F132 -> 1.000114299
A133: 199 | B133: 200 | C133: 3.884711185e-15 | D133: 1778.667465 | E133: 3.52710043e-15 | F133: 1614.930553 | G133: 1.101389445 | H133: 1614.942366 | I133: 1.000007315
A134: 299 | B134: 300 | C134: 7.136684762e-15 | D134: 3267.627474 | E134: 6.568531349e-15 | F134: 3007.490763 | G134: 1.086496263 | H134: 3007.49021 | I134: 0.9999998161
A135: 399 | B135: 400 | C135: 1.098764769e-14 | D135: 5030.842846 | E135: 1.024786015e-14 | F135: 4692.121129 | G135: 1.072189466 | H135: 4692.371999 | I135: 1.000053466
A136: 499 | B136: 500 | C136: 1.535569699e-14 | D136: 7030.813191 | E136: 1.45079596e-14 | F136: 6642.66518 | G136: 1.058432572 | H136: 6643.569934 | I136: 1.000136203
A137: 599 | B137: 600 | C137: 2.01855674e-14 | D137: 9242.234569 | E137: 1.931279531e-14 | F137: 8842.624084 | G137: 1.045191391 | H137: 8844.537106 | I137: 1.000216341
A138: 699 | B138: 700 | C138: 2.543675834e-14 | D138: 11646.56324 | E138: 2.463757679e-14 | F138: 11280.64718 | G138: 1.032437506 | H138: 11283.64924 | I138: 1.000266125
A139: 799 | B139: 800 | C139: 3.107768948e-14 | D139: 14229.33972 | E139: 3.04642685e-14 | F139: 13948.47664 | G139: 1.020135753 | H139: 13951.96178 | I139: 1.000249858
A140: 899 | B140: 900 | C140: 3.708323179e-14 | D140: 16979.05836 | E140: 3.677922216e-14 | F140: 16839.86344 | G140: 1.008265798 | H140: 16842.3049 | I140: 1.000144981
A141: 999 | B141: 1000 | C141: 4.34324542e-14 | D141: 19886.13556 | E141: 4.357180098e-14 | F141: 19949.93736 | G141: 0.9968019047 | H141: 19948.39532 | I141: 0.9999227045

Sheet z = 0 table
F1: cosmic redshift z | H1: 0 | I1: 0 | J1: 0 | L1: 0
F2: baryon density | G2: Kg/m3 | H2: 4.21E-28 | I2: 8.42E-28 | J2: 4.21E-28 | K2: 4.21E-28 | L2: 3.58E-28
F3: molecular weight: | H3: 1.24750E-03 | I3: 1.24750E-03 | J3: =0.0012475/2 -> 6.23750E-04 | K3: 0.131 | L3: 1.24750E-03
F4: T | G4: K | H4: 500 | I4: 500 | J4: 4000 | K4: 4000 | L4: 500
F5: CDM | H5: 6.33 | I5: 6.33 | J5: 6.33 | K5: 6.33 | L5: 6.33
F6: Δr/r | H6: 1.00E-09 | I6: 1.00E-09 | J6: 1.00E-09 | K6: 1.00E-09 | L6: 1.00E-09
F7: v(s0) | G7: m/sec | H7: 0.1414026135 | I7: 0.1414026135 | J7: 0.5656104542 | K7: 0.03902896724 | L7: 0.1414026135
F8: vi | G8: m/sec | H8: 2581.646741 | I8: 2581.646741 | J8: 10326.58696 | K8: 712.5682019 | L8: 2581.646741
F9: vi/v(s0) | H9: 18257.41884 | I9: 18257.41884 | J9: 18257.41884 | K9: 18257.41884 | L9: 18257.41884
F10: re | G10: m | H10: 1.879675064e+21 | I10: 1.329131592e+21 | J10: 7.518703953e+21 | K10: 5.188140883e+20 | L10: 2.038793215e+21
F11: H = vi/re | H11: =H8/H10 -> 1.37345E-18 | I11: =I8/I10 -> 1.94236E-18 | J11: =J8/J10 -> 1.37345E-18 | K11: =K8/K10 -> 1.37346E-18 | L11: =L8/L10 -> 1.26626E-18
F12: H0 | G12: sec-1 | H12: 2.184057032e-18 | I12: 2.184057032e-18 | J12: 2.184057032e-18 | K12: 2.184057032e-18 | L12: 2.184057032e-18
F13: gas H/H0: | H13: =H11/H12 -> 0.629 | I13: =I11/I12 -> 0.889 | J13: =J11/J12 -> 0.629 | K13: =K11/K12 -> 0.629 | L13: =L11/L12 -> 0.580
F14: ΛCDM H: | G14: sec-1 | H14: 2.18E-18 | I14: 2.18306306e-18 | J14: 2.18306306e-18 | K14: 2.18306306e-18 | L14: 2.18E-18
F15: ΛCDM H/H0: | H15: =H14/H12 -> 0.9995448964 | I15: =I14/I12 -> 0.9995448964 | J15: =J14/J12 -> 0.9995448964 | K15: =K14/K12 -> 0.9995448964 | L15: =L14/L12 -> 0.9995448964
F16: gas/ΛCDM: | H16: =H13/H15 -> 0.62914 | I16: =I13/I15 -> 0.88974 | J16: =J13/J15 -> 0.62914 | K16: =K13/K15 -> 0.62914 | L16: =L13/L15 -> 0.58004 | M16: =L16/1.1327 -> 0.51209
M17: =L16/H16 -> 0.9219547378
A18: z | B18: 0 | F18: Ω at 1/a
A19: 1/a | B19: =1+B18 -> 1 | C19: radiation density parameter | D19: 9e-05 | E19: =D19*B19^4 -> 9e-05 | F19: =E19/SUM($E$19:$E$22) -> 0.0001
C20: baryon density parameter | D20: 0.049 | E20: =D20*B19^3 -> 0.049 | F20: =E20/SUM($E$19:$E$22) -> 0.0490
A21: H0 | B21: 2.184057032e-18 | C21: CDM density parameter | D21: 0.259 | E21: =D21*B19^3 -> 0.259 | F21: =E21/SUM($E$19:$E$22) -> 0.2592
C22: lambda density parameter | D22: 0.691 | E22: 0.691 | F22: =E22/SUM($E$19:$E$22) -> 0.6916
D24: ΛCDM H: | E24: =B21*SQRT(SUM(E19:E22)) -> 2.183E-18
D25: ΛCDM H/H0: | E25: =SQRT(SUM(E19:E22)) -> 0.9995448964
